Workbook

Sheet leány (hidden)
B1: 61 m | C1: 60m | D1: 4x100 | E1: 800 m | F1: Pont | G1: Távol | H1: Súlyl. | I1: Kisl. | J1: Pont
B2: 6.89 | C2: 6.9 | D2: 00:00:50 | E2: 00:00:51 | F2: 300 | G2: =N2/100 -> 1.8 | H2: 3 | I2: 4 | J2: 0 | N2: 180
B3: 6.9051 | C3: 6.918 | D3: 00:00:51.005 | E3: 00:00:51.080 | F3: 299 | G3: 1.82 | H3: 3.05 | I3: 4.28 | J3: 1 | N3: 182
B4: 6.9231 | C4: 6.936 | D4: 00:00:51.085 | E4: 00:00:51.160 | F4: 298 | G4: 1.84 | H4: 3.1 | I4: 4.56 | J4: 2 | N4: 184
B5: 6.9411 | C5: 6.954 | D5: 00:00:51.165 | E5: 00:00:51.240 | F5: 297 | G5: 1.86 | H5: 3.14 | I5: 4.84 | J5: 3 | N5: 186
B6: 6.9591 | C6: 6.972 | D6: 00:00:51.245 | E6: 00:00:51.320 | F6: 296 | G6: 1.87 | H6: 3.19 | I6: 5.11 | J6: 4 | N6: 187
B7: 6.9771 | C7: 6.99 | D7: 00:00:51.325 | E7: 00:00:51.400 | F7: 295 | G7: 1.89 | H7: 3.24 | I7: 5.39 | J7: 5 | N7: 189
B8: 6.9951 | C8: 7.008 | D8: 00:00:51.405 | E8: 00:00:51.480 | F8: 294 | G8: 1.91 | H8: 3.29 | I8: 5.67 | J8: 6 | N8: 191
B9: 7.0131 | C9: 7.026 | D9: 00:00:51.485 | E9: 00:00:51.560 | F9: 293 | G9: 1.93 | H9: 3.34 | I9: 5.95 | J9: 7 | N9: 193
B10: 7.0311 | C10: 7.044 | D10: 00:00:51.565 | E10: 00:00:51.640 | F10: 292 | G10: 1.95 | H10: 3.38 | I10: 6.23 | J10: 8 | N10: 195
B11: 7.0491 | C11: 7.062 | D11: 00:00:51.645 | E11: 00:00:51.720 | F11: 291 | G11: 1.97 | H11: 3.43 | I11: 6.51 | J11: 9 | N11: 197
B12: 7.0671 | C12: 7.08 | D12: 00:00:51.725 | E12: 00:00:51.800 | F12: 290 | G12: 1.99 | H12: 3.48 | I12: 6.78 | J12: 10 | N12: 199
B13: 7.0851 | C13: 7.098 | D13: 00:00:51.805 | E13: 00:00:51.880 | F13: 289 | G13: 2.01 | H13: 3.53 | I13: 7.06 | J13: 11 | N13: 201
B14: 7.1031 | C14: 7.116 | D14: 00:00:51.885 | E14: 00:00:51.960 | F14: 288 | G14: 2.02 | H14: 3.58 | I14: 7.34 | J14: 12 | N14: 202
B15: 7.1211 | C15: 7.134 | D15: 00:00:51.965 | E15: 00:00:52.040 | F15: 287 | G15: 2.04 | H15: 3.62 | I15: 7.62 | J15: 13 | N15: 204
B16: 7.1391 | C16: 7.152 | D16: 00:00:52.045 | E16: 00:00:52.120 | F16: 286 | G16: 2.06 | H16: 3.67 | I16: 7.9 | J16: 14 | N16: 206
B17: 7.1571 | C17: 7.17 | D17: 00:00:52.125 | E17: 00:00:52.200 | F17: 285 | G17: 2.08 | H17: 3.72 | I17: 8.18 | J17: 15 | N17: 208
B18: 7.1751 | C18: 7.188 | D18: 00:00:52.205 | E18: 00:00:52.280 | F18: 284 | G18: 2.1 | H18: 3.77 | I18: 8.45 | J18: 16 | N18: 210
B19: 7.1931 | C19: 7.206 | D19: 00:00:52.285 | E19: 00:00:52.360 | F19: 283 | G19: 2.12 | H19: 3.82 | I19: 8.73 | J19: 17 | N19: 212
B20: 7.2111 | C20: 7.224 | D20: 00:00:52.365 | E20: 00:00:52.440 | F20: 282 | G20: 2.14 | H20: 3.86 | I20: 9.01 | J20: 18 | N20: 214
B21: 7.2291 | C21: 7.242 | D21: 00:00:52.445 | E21: 00:00:52.520 | F21: 281 | G21: 2.16 | H21: 3.91 | I21: 9.29 | J21: 19 | N21: 216
B22: 7.2471 | C22: 7.26 | D22: 00:00:52.525 | E22: 00:00:52.600 | F22: 280 | G22: 2.17 | H22: 3.96 | I22: 9.57 | J22: 20 | N22: 217
B23: 7.2651 | C23: 7.278 | D23: 00:00:52.605 | E23: 00:00:52.680 | F23: 279 | G23: 2.19 | H23: 4.01 | I23: 9.85 | J23: 21 | N23: 219
B24: 7.2831 | C24: 7.296 | D24: 00:00:52.685 | E24: 00:00:52.760 | F24: 278 | G24: 2.21 | H24: 4.06 | I24: 10.12 | J24: 22 | N24: 221
B25: 7.3011 | C25: 7.314 | D25: 00:00:52.765 | E25: 00:00:52.840 | F25: 277 | G25: 2.23 | H25: 4.1 | I25: 10.4 | J25: 23 | N25: 223
B26: 7.3191 | C26: 7.332 | D26: 00:00:52.845 | E26: 00:00:52.920 | F26: 276 | G26: 2.25 | H26: 4.15 | I26: 10.68 | J26: 24 | N26: 225
B27: 7.3371 | C27: 7.35 | D27: 00:00:52.925 | E27: 00:00:53 | F27: 275 | G27: 2.27 | H27: 4.2 | I27: 10.96 | J27: 25 | N27: 227
B28: 7.3551 | C28: 7.368 | D28: 00:00:53.005 | E28: 00:00:53.080 | F28: 274 | G28: 2.29 | H28: 4.25 | I28: 11.24 | J28: 26 | N28: 229
B29: 7.3731 | C29: 7.386 | D29: 00:00:53.085 | E29: 00:00:53.160 | F29: 273 | G29: 2.31 | H29: 4.3 | I29: 11.52 | J29: 27 | N29: 231
B30: 7.3911 | C30: 7.404 | D30: 00:00:53.165 | E30: 00:00:53.240 | F30: 272 | G30: 2.32 | H30: 4.34 | I30: 11.8 | J30: 28 | N30: 232
B31: 7.4091 | C31: 7.422 | D31: 00:00:53.245 | E31: 00:00:53.320 | F31: 271 | G31: 2.34 | H31: 4.39 | I31: 12.07 | J31: 29 | N31: 234
B32: 7.4271 | C32: 7.44 | D32: 00:00:53.325 | E32: 00:00:53.400 | F32: 270 | G32: 2.36 | H32: 4.44 | I32: 12.35 | J32: 30 | N32: 236
B33: 7.4451 | C33: 7.458 | D33: 00:00:53.405 | E33: 00:00:53.480 | F33: 269 | G33: 2.38 | H33: 4.49 | I33: 12.63 | J33: 31 | N33: 238
B34: 7.4631 | C34: 7.476 | D34: 00:00:53.485 | E34: 00:00:53.560 | F34: 268 | G34: 2.4 | H34: 4.54 | I34: 12.91 | J34: 32 | N34: 240
B35: 7.4811 | C35: 7.494 | D35: 00:00:53.565 | E35: 00:00:53.640 | F35: 267 | G35: 2.42 | H35: 4.58 | I35: 13.19 | J35: 33 | N35: 242
B36: 7.4991 | C36: 7.512 | D36: 00:00:53.645 | E36: 00:00:53.720 | F36: 266 | G36: 2.44 | H36: 4.63 | I36: 13.47 | J36: 34 | N36: 244
B37: 7.5171 | C37: 7.53 | D37: 00:00:53.725 | E37: 00:00:53.800 | F37: 265 | G37: 2.46 | H37: 4.68 | I37: 13.74 | J37: 35 | N37: 246
B38: 7.5351 | C38: 7.548 | D38: 00:00:53.805 | E38: 00:00:53.880 | F38: 264 | G38: 2.47 | H38: 4.73 | I38: 14.02 | J38: 36 | N38: 247
B39: 7.5531 | C39: 7.566 | D39: 00:00:53.885 | E39: 00:00:53.960 | F39: 263 | G39: 2.49 | H39: 4.78 | I39: 14.3 | J39: 37 | N39: 249
B40: 7.5711 | C40: 7.584 | D40: 00:00:53.965 | E40: 00:00:54.040 | F40: 262 | G40: 2.51 | H40: 4.82 | I40: 14.58 | J40: 38 | N40: 251
B41: 7.5891 | C41: 7.602 | D41: 00:00:54.045 | E41: 00:00:54.120 | F41: 261 | G41: 2.53 | H41: 4.87 | I41: 14.86 | J41: 39 | N41: 253
B42: 7.6071 | C42: 7.62 | D42: 00:00:54.125 | E42: 00:00:54.200 | F42: 260 | G42: 2.55 | H42: 4.92 | I42: 15.14 | J42: 40 | N42: 255
B43: 7.6251 | C43: 7.638 | D43: 00:00:54.205 | E43: 00:00:54.280 | F43: 259 | G43: 2.57 | H43: 4.97 | I43: 15.41 | J43: 41 | N43: 257
B44: 7.6431 | C44: 7.656 | D44: 00:00:54.285 | E44: 00:00:54.360 | F44: 258 | G44: 2.59 | H44: 5.02 | I44: 15.69 | J44: 42 | N44: 259
B45: 7.6611 | C45: 7.674 | D45: 00:00:54.365 | E45: 00:00:54.440 | F45: 257 | G45: 2.61 | H45: 5.06 | I45: 15.97 | J45: 43 | N45: 261
B46: 7.6791 | C46: 7.692 | D46: 00:00:54.445 | E46: 00:00:54.520 | F46: 256 | G46: 2.62 | H46: 5.11 | I46: 16.25 | J46: 44 | N46: 262
B47: 7.6971 | C47: 7.71 | D47: 00:00:54.525 | E47: 00:00:54.600 | F47: 255 | G47: 2.64 | H47: 5.16 | I47: 16.53 | J47: 45 | N47: 264
B48: 7.7151 | C48: 7.728 | D48: 00:00:54.605 | E48: 00:00:54.680 | F48: 254 | G48: 2.66 | H48: 5.21 | I48: 16.81 | J48: 46 | N48: 266
B49: 7.7331 | C49: 7.746 | D49: 00:00:54.685 | E49: 00:00:54.760 | F49: 253 | G49: 2.68 | H49: 5.26 | I49: 17.08 | J49: 47 | N49: 268
B50: 7.7511 | C50: 7.764 | D50: 00:00:54.765 | E50: 00:00:54.840 | F50: 252 | G50: 2.7 | H50: 5.3 | I50: 17.36 | J50: 48 | N50: 270
B51: 7.7691 | C51: 7.782 | D51: 00:00:54.845 | E51: 00:00:54.920 | F51: 251 | G51: 2.72 | H51: 5.35 | I51: 17.64 | J51: 49 | N51: 272
B52: 7.7871 | C52: 7.8 | D52: 00:00:54.925 | E52: 00:00:55 | F52: 250 | G52: 2.73 | H52: 5.4 | I52: 17.92 | J52: 50 | N52: 273
B53: 7.8051 | C53: 7.82 | D53: 00:00:55.005 | E53: 00:00:55.080 | F53: 249 | G53: 2.75 | H53: 5.44 | I53: 18.18 | J53: 51 | N53: 275
B54: 7.8251 | C54: 7.84 | D54: 00:00:55.085 | E54: 00:00:55.160 | F54: 248 | G54: 2.76 | H54: 5.49 | I54: 18.43 | J54: 52 | N54: 276
B55: 7.8451 | C55: 7.85 | D55: 00:00:55.165 | E55: 00:00:55.240 | F55: 247 | G55: 2.78 | H55: 5.53 | I55: 18.69 | J55: 53 | N55: 278
B56: 7.8551 | C56: 7.87 | D56: 00:00:55.245 | E56: 00:00:55.320 | F56: 246 | G56: 2.8 | H56: 5.58 | I56: 18.94 | J56: 54 | N56: 280
B57: 7.8751 | C57: 7.89 | D57: 00:00:55.325 | E57: 00:00:55.400 | F57: 245 | G57: 2.82 | H57: 5.62 | I57: 19.2 | J57: 55 | N57: 282
B58: 7.8951 | C58: 7.91 | D58: 00:00:55.405 | E58: 00:00:55.480 | F58: 244 | G58: 2.83 | H58: 5.66 | I58: 19.45 | J58: 56 | N58: 283
B59: 7.9151 | C59: 7.93 | D59: 00:00:55.485 | E59: 00:00:55.560 | F59: 243 | G59: 2.85 | H59: 5.71 | I59: 19.71 | J59: 57 | N59: 285
B60: 7.9351 | C60: 7.95 | D60: 00:00:55.565 | E60: 00:00:55.640 | F60: 242 | G60: 2.87 | H60: 5.75 | I60: 19.96 | J60: 58 | N60: 287
B61: 7.9551 | C61: 7.96 | D61: 00:00:55.645 | E61: 00:00:55.720 | F61: 241 | G61: 2.88 | H61: 5.8 | I61: 20.22 | J61: 59 | N61: 288
B62: 7.9651 | C62: 7.98 | D62: 00:00:55.725 | E62: 00:00:55.800 | F62: 240 | G62: 2.9 | H62: 5.84 | I62: 20.47 | J62: 60 | N62: 290
B63: 7.9851 | C63: 8 | D63: 00:00:55.805 | E63: 00:00:55.880 | F63: 239 | G63: 2.92 | H63: 5.88 | I63: 20.73 | J63: 61 | N63: 292
B64: 8.0051 | C64: 8.02 | D64: 00:00:55.885 | E64: 00:00:55.960 | F64: 238 | G64: 2.94 | H64: 5.93 | I64: 20.98 | J64: 62 | N64: 294
B65: 8.0251 | C65: 8.04 | D65: 00:00:55.965 | E65: 00:00:56.040 | F65: 237 | G65: 2.95 | H65: 5.97 | I65: 21.24 | J65: 63 | N65: 295
B66: 8.0451 | C66: 8.05 | D66: 00:00:56.045 | E66: 00:00:56.120 | F66: 236 | G66: =N66/100 -> 2.97 | H66: 6.02 | I66: 21.49 | J66: 64 | N66: 297
B67: 8.0551 | C67: 8.07 | D67: 00:00:56.125 | E67: 00:00:56.200 | F67: 235 | G67: 2.99 | H67: 6.06 | I67: 21.75 | J67: 65 | N67: 299
B68: 8.0751 | C68: 8.09 | D68: 00:00:56.205 | E68: 00:00:56.280 | F68: 234 | G68: 3 | H68: 6.1 | I68: 22 | J68: 66 | N68: 300
B69: 8.0951 | C69: 8.11 | D69: 00:00:56.285 | E69: 00:00:56.360 | F69: 233 | G69: 3.02 | H69: 6.15 | I69: 22.26 | J69: 67 | N69: 302
B70: 8.1151 | C70: 8.13 | D70: 00:00:56.365 | E70: 00:00:56.440 | F70: 232 | G70: 3.04 | H70: 6.19 | I70: 22.51 | J70: 68 | N70: 304
B71: 8.1351 | C71: 8.15 | D71: 00:00:56.445 | E71: 00:00:56.520 | F71: 231 | G71: 3.06 | H71: 6.24 | I71: 22.77 | J71: 69 | N71: 306
B72: 8.1551 | C72: 8.16 | D72: 00:00:56.525 | E72: 00:00:56.600 | F72: 230 | G72: 3.07 | H72: 6.28 | I72: 23.02 | J72: 70 | N72: 307
B73: 8.1651 | C73: 8.18 | D73: 00:00:56.605 | E73: 00:00:56.680 | F73: 229 | G73: 3.09 | H73: 6.32 | I73: 23.28 | J73: 71 | N73: 309
B74: 8.1851 | C74: 8.2 | D74: 00:00:56.685 | E74: 00:00:56.760 | F74: 228 | G74: 3.11 | H74: 6.37 | I74: 23.53 | J74: 72 | N74: 311
B75: 8.2051 | C75: 8.22 | D75: 00:00:56.765 | E75: 00:00:56.840 | F75: 227 | G75: 3.12 | H75: 6.41 | I75: 23.79 | J75: 73 | N75: 312
B76: 8.2251 | C76: 8.24 | D76: 00:00:56.845 | E76: 00:00:56.920 | F76: 226 | G76: 3.14 | H76: 6.46 | I76: 24.04 | J76: 74 | N76: 314
B77: 8.2451 | C77: 8.26 | D77: 00:00:56.925 | E77: 00:00:57 | F77: 225 | G77: 3.16 | H77: 6.5 | I77: 24.3 | J77: 75 | N77: 316
B78: 8.2651 | C78: 8.27 | D78: 00:00:57.005 | E78: 00:00:57.080 | F78: 224 | G78: 3.18 | H78: 6.54 | I78: 24.56 | J78: 76 | N78: 318
B79: 8.2751 | C79: 8.29 | D79: 00:00:57.085 | E79: 00:00:57.160 | F79: 223 | G79: 3.19 | H79: 6.59 | I79: 24.81 | J79: 77 | N79: 319
B80: 8.2951 | C80: 8.31 | D80: 00:00:57.165 | E80: 00:00:57.240 | F80: 222 | G80: 3.21 | H80: 6.63 | I80: 25.07 | J80: 78 | N80: 321
B81: 8.3151 | C81: 8.33 | D81: 00:00:57.245 | E81: 00:00:57.320 | F81: 221 | G81: 3.23 | H81: 6.68 | I81: 25.32 | J81: 79 | N81: 323
B82: 8.3351 | C82: 8.35 | D82: 00:00:57.325 | E82: 00:00:57.400 | F82: 220 | G82: 3.24 | H82: 6.72 | I82: 25.58 | J82: 80 | N82: 324
B83: 8.3551 | C83: 8.36 | D83: 00:00:57.405 | E83: 00:00:57.480 | F83: 219 | G83: 3.26 | H83: 6.76 | I83: 25.83 | J83: 81 | N83: 326
B84: 8.3651 | C84: 8.38 | D84: 00:00:57.485 | E84: 00:00:57.560 | F84: 218 | G84: 3.28 | H84: 6.81 | I84: 26.09 | J84: 82 | N84: 328
B85: 8.3851 | C85: 8.4 | D85: 00:00:57.565 | E85: 00:00:57.640 | F85: 217 | G85: 3.3 | H85: 6.85 | I85: 26.34 | J85: 83 | N85: 330
B86: 8.4051 | C86: 8.42 | D86: 00:00:57.645 | E86: 00:00:57.720 | F86: 216 | G86: 3.31 | H86: 6.9 | I86: 26.6 | J86: 84 | N86: 331
B87: 8.4251 | C87: 8.44 | D87: 00:00:57.725 | E87: 00:00:57.800 | F87: 215 | G87: 3.33 | H87: 6.94 | I87: 26.85 | J87: 85 | N87: 333
B88: 8.4451 | C88: 8.46 | D88: 00:00:57.805 | E88: 00:00:57.880 | F88: 214 | G88: 3.35 | H88: 6.98 | I88: 27.11 | J88: 86 | N88: 335
B89: 8.4651 | C89: 8.47 | D89: 00:00:57.885 | E89: 00:00:57.960 | F89: 213 | G89: 3.36 | H89: 7.03 | I89: 27.36 | J89: 87 | N89: 336
B90: 8.4751 | C90: 8.49 | D90: 00:00:57.965 | E90: 00:00:58.040 | F90: 212 | G90: 3.38 | H90: 7.07 | I90: 27.62 | J90: 88 | N90: 338
B91: 8.4951 | C91: 8.51 | D91: 00:00:58.045 | E91: 00:00:58.120 | F91: 211 | G91: 3.4 | H91: 7.12 | I91: 27.87 | J91: 89 | N91: 340
B92: 8.5151 | C92: 8.53 | D92: 00:00:58.125 | E92: 00:00:58.200 | F92: 210 | G92: 3.42 | H92: 7.16 | I92: 28.13 | J92: 90 | N92: 342
B93: 8.5351 | C93: 8.55 | D93: 00:00:58.205 | E93: 00:00:58.280 | F93: 209 | G93: 3.43 | H93: 7.2 | I93: 28.38 | J93: 91 | N93: 343
B94: 8.5551 | C94: 8.56 | D94: 00:00:58.285 | E94: 00:00:58.360 | F94: 208 | G94: 3.45 | H94: 7.25 | I94: 28.64 | J94: 92 | N94: 345
B95: 8.5651 | C95: 8.58 | D95: 00:00:58.365 | E95: 00:00:58.440 | F95: 207 | G95: 3.47 | H95: 7.29 | I95: 28.89 | J95: 93 | N95: 347
B96: 8.5851 | C96: 8.6 | D96: 00:00:58.445 | E96: 00:00:58.520 | F96: 206 | G96: 3.49 | H96: 7.34 | I96: 29.15 | J96: 94 | N96: 349
B97: 8.6051 | C97: 8.62 | D97: 00:00:58.525 | E97: 00:00:58.600 | F97: 205 | G97: 3.5 | H97: 7.38 | I97: 29.4 | J97: 95 | N97: 350
B98: 8.6251 | C98: 8.64 | D98: 00:00:58.605 | E98: 00:00:58.680 | F98: 204 | G98: 3.52 | H98: 7.42 | I98: 29.66 | J98: 96 | N98: 352
B99: 8.6451 | C99: 8.66 | D99: 00:00:58.685 | E99: 00:00:58.760 | F99: 203 | G99: 3.54 | H99: 7.47 | I99: 29.91 | J99: 97 | N99: 354
B100: 8.6651 | C100: 8.67 | D100: 00:00:58.765 | E100: 00:00:58.840 | F100: 202 | G100: 3.55 | H100: 7.51 | I100: 30.17 | J100: 98 | N100: 355
B101: 8.6751 | C101: 8.69 | D101: 00:00:58.845 | E101: 00:00:58.920 | F101: 201 | G101: 3.57 | H101: 7.56 | I101: 30.42 | J101: 99 | N101: 357
B102: 8.6951 | C102: 8.71 | D102: 00:00:58.925 | E102: 00:00:59 | F102: 200 | G102: 3.59 | H102: 7.6 | I102: 30.68 | J102: 100 | N102: 359
B103: 8.7151 | C103: 8.73 | D103: 00:00:59.005 | E103: 00:00:59.090 | F103: 199 | G103: 3.61 | H103: 7.64 | I103: 30.91 | J103: 101 | N103: 361
B104: 8.7351 | C104: 8.75 | D104: 00:00:59.095 | E104: 00:00:59.180 | F104: 198 | G104: 3.62 | H104: 7.68 | I104: 31.14 | J104: 102 | N104: 362
B105: 8.7551 | C105: 8.77 | D105: 00:00:59.185 | E105: 00:00:59.270 | F105: 197 | G105: 3.64 | H105: 7.72 | I105: 31.38 | J105: 103 | N105: 364
B106: 8.7751 | C106: 8.79 | D106: 00:00:59.275 | E106: 00:00:59.360 | F106: 196 | G106: 3.65 | H106: 7.76 | I106: 31.61 | J106: 104 | N106: 365
B107: 8.7951 | C107: 8.81 | D107: 00:00:59.365 | E107: 00:00:59.450 | F107: 195 | G107: 3.67 | H107: 7.8 | I107: 31.84 | J107: 105 | N107: 367
B108: 8.8151 | C108: 8.83 | D108: 00:00:59.455 | E108: 00:00:59.540 | F108: 194 | G108: 3.68 | H108: 7.84 | I108: 32.07 | J108: 106 | N108: 368
B109: 8.8351 | C109: 8.85 | D109: 00:00:59.545 | E109: 00:00:59.630 | F109: 193 | G109: 3.7 | H109: 7.88 | I109: 32.3 | J109: 107 | N109: 370
B110: 8.8551 | C110: 8.87 | D110: 00:00:59.635 | E110: 00:00:59.720 | F110: 192 | G110: 3.71 | H110: 7.92 | I110: 32.54 | J110: 108 | N110: 371
B111: 8.8751 | C111: 8.9 | D111: 00:00:59.725 | E111: 00:00:59.810 | F111: 191 | G111: 3.73 | H111: 7.96 | I111: 32.77 | J111: 109 | N111: 373
B112: 8.9051 | C112: 8.92 | D112: 00:00:59.815 | E112: 00:00:59.900 | F112: 190 | G112: 3.75 | H112: 8 | I112: 33 | J112: 110 | N112: 375
B113: 8.9251 | C113: 8.94 | D113: 00:00:59.905 | E113: 00:00:59.990 | F113: 189 | G113: 3.76 | H113: 8.04 | I113: 33.23 | J113: 111 | N113: 376
B114: 8.9451 | C114: 8.96 | D114: 00:00:59.995 | E114: 00:01:00.080 | F114: 188 | G114: 3.78 | H114: 8.08 | I114: 33.46 | J114: 112 | N114: 378
B115: 8.9651 | C115: 8.98 | D115: 00:01:00.085 | E115: 00:01:00.170 | F115: 187 | G115: 3.79 | H115: 8.12 | I115: 33.7 | J115: 113 | N115: 379
B116: 8.9851 | C116: 9 | D116: 00:01:00.175 | E116: 00:01:00.260 | F116: 186 | G116: 3.81 | H116: 8.16 | I116: 33.93 | J116: 114 | N116: 381
B117: 9.0051 | C117: 9.02 | D117: 00:01:00.265 | E117: 00:01:00.350 | F117: 185 | G117: 3.82 | H117: 8.2 | I117: 34.16 | J117: 115 | N117: 382
B118: 9.0251 | C118: 9.04 | D118: 00:01:00.355 | E118: 00:01:00.440 | F118: 184 | G118: 3.84 | H118: 8.24 | I118: 34.39 | J118: 116 | N118: 384
B119: 9.0451 | C119: 9.06 | D119: 00:01:00.445 | E119: 00:01:00.530 | F119: 183 | G119: 3.86 | H119: 8.28 | I119: 34.62 | J119: 117 | N119: 386
B120: 9.0651 | C120: 9.08 | D120: 00:01:00.535 | E120: 00:01:00.620 | F120: 182 | G120: 3.87 | H120: 8.32 | I120: 34.86 | J120: 118 | N120: 387
B121: 9.0851 | C121: 9.1 | D121: 00:01:00.625 | E121: 00:01:00.710 | F121: 181 | G121: 3.89 | H121: 8.36 | I121: 35.09 | J121: 119 | N121: 389
B122: 9.1051 | C122: 9.12 | D122: 00:01:00.715 | E122: 00:01:00.800 | F122: 180 | G122: 3.9 | H122: 8.4 | I122: 35.32 | J122: 120 | N122: 390
B123: 9.1251 | C123: 9.14 | D123: 00:01:00.805 | E123: 00:01:00.890 | F123: 179 | G123: 3.92 | H123: 8.44 | I123: 35.55 | J123: 121 | N123: 392
B124: 9.1451 | C124: 9.16 | D124: 00:01:00.895 | E124: 00:01:00.980 | F124: 178 | G124: 3.93 | H124: 8.48 | I124: 35.78 | J124: 122 | N124: 393
B125: 9.1651 | C125: 9.18 | D125: 00:01:00.985 | E125: 00:01:01.070 | F125: 177 | G125: 3.95 | H125: 8.52 | I125: 36.02 | J125: 123 | N125: 395
B126: 9.1851 | C126: 9.2 | D126: 00:01:01.075 | E126: 00:01:01.160 | F126: 176 | G126: 3.96 | H126: 8.56 | I126: 36.25 | J126: 124 | N126: 396
B127: 9.2051 | C127: 9.23 | D127: 00:01:01.165 | E127: 00:01:01.250 | F127: 175 | G127: 3.98 | H127: 8.6 | I127: 36.48 | J127: 125 | N127: 398
B128: 9.2351 | C128: 9.25 | D128: 00:01:01.255 | E128: 00:01:01.340 | F128: 174 | G128: 4 | H128: 8.64 | I128: 36.71 | J128: 126 | N128: 400
B129: 9.2551 | C129: 9.27 | D129: 00:01:01.345 | E129: 00:01:01.430 | F129: 173 | G129: 4.01 | H129: 8.68 | I129: 36.94 | J129: 127 | N129: 401
B130: 9.2751 | C130: 9.29 | D130: 00:01:01.435 | E130: 00:01:01.520 | F130: 172 | G130: =N130/100 -> 4.03 | H130: 8.72 | I130: 37.18 | J130: 128 | N130: 403
B131: 9.2951 | C131: 9.31 | D131: 00:01:01.525 | E131: 00:01:01.610 | F131: 171 | G131: 4.04 | H131: 8.76 | I131: 37.41 | J131: 129 | N131: 404
B132: 9.3151 | C132: 9.33 | D132: 00:01:01.615 | E132: 00:01:01.700 | F132: 170 | G132: 4.06 | H132: 8.8 | I132: 37.64 | J132: 130 | N132: 406
B133: 9.3351 | C133: 9.35 | D133: 00:01:01.705 | E133: 00:01:01.790 | F133: 169 | G133: 4.07 | H133: 8.84 | I133: 37.87 | J133: 131 | N133: 407
B134: 9.3551 | C134: 9.37 | D134: 00:01:01.795 | E134: 00:01:01.880 | F134: 168 | G134: 4.09 | H134: 8.88 | I134: 38.1 | J134: 132 | N134: 409
B135: 9.3751 | C135: 9.39 | D135: 00:01:01.885 | E135: 00:01:01.970 | F135: 167 | G135: 4.1 | H135: 8.92 | I135: 38.34 | J135: 133 | N135: 410
B136: 9.3951 | C136: 9.41 | D136: 00:01:01.975 | E136: 00:01:02.060 | F136: 166 | G136: 4.12 | H136: 8.96 | I136: 38.57 | J136: 134 | N136: 412
B137: 9.4151 | C137: 9.43 | D137: 00:01:02.065 | E137: 00:01:02.150 | F137: 165 | G137: 4.14 | H137: 9 | I137: 38.8 | J137: 135 | N137: 414
B138: 9.4351 | C138: 9.45 | D138: 00:01:02.155 | E138: 00:01:02.240 | F138: 164 | G138: 4.15 | H138: 9.04 | I138: 39.03 | J138: 136 | N138: 415
B139: 9.4551 | C139: 9.47 | D139: 00:01:02.245 | E139: 00:01:02.330 | F139: 163 | G139: 4.17 | H139: 9.08 | I139: 39.26 | J139: 137 | N139: 417
B140: 9.4751 | C140: 9.49 | D140: 00:01:02.335 | E140: 00:01:02.420 | F140: 162 | G140: 4.18 | H140: 9.12 | I140: 39.5 | J140: 138 | N140: 418
B141: 9.4951 | C141: 9.51 | D141: 00:01:02.425 | E141: 00:01:02.510 | F141: 161 | G141: 4.2 | H141: 9.16 | I141: 39.73 | J141: 139 | N141: 420
B142: 9.5151 | C142: 9.53 | D142: 00:01:02.515 | E142: 00:01:02.600 | F142: 160 | G142: 4.21 | H142: 9.2 | I142: 39.96 | J142: 140 | N142: 421
B143: 9.5351 | C143: 9.55 | D143: 00:01:02.605 | E143: 00:01:02.690 | F143: 159 | G143: 4.23 | H143: 9.24 | I143: 40.19 | J143: 141 | N143: 423
B144: 9.5551 | C144: 9.58 | D144: 00:01:02.695 | E144: 00:01:02.780 | F144: 158 | G144: 4.25 | H144: 9.28 | I144: 40.42 | J144: 142 | N144: 425
B145: 9.5851 | C145: 9.6 | D145: 00:01:02.785 | E145: 00:01:02.870 | F145: 157 | G145: 4.26 | H145: 9.32 | I145: 40.66 | J145: 143 | N145: 426
B146: 9.6051 | C146: 9.62 | D146: 00:01:02.875 | E146: 00:01:02.960 | F146: 156 | G146: 4.28 | H146: 9.36 | I146: 40.89 | J146: 144 | N146: 428
B147: 9.6251 | C147: 9.64 | D147: 00:01:02.965 | E147: 00:01:03.050 | F147: 155 | G147: 4.29 | H147: 9.4 | I147: 41.12 | J147: 145 | N147: 429
B148: 9.6451 | C148: 9.66 | D148: 00:01:03.055 | E148: 00:01:03.140 | F148: 154 | G148: 4.31 | H148: 9.44 | I148: 41.35 | J148: 146 | N148: 431
B149: 9.6651 | C149: 9.68 | D149: 00:01:03.145 | E149: 00:01:03.230 | F149: 153 | G149: 4.32 | H149: 9.48 | I149: 41.58 | J149: 147 | N149: 432
B150: 9.6851 | C150: 9.7 | D150: 00:01:03.235 | E150: 00:01:03.320 | F150: 152 | G150: 4.34 | H150: 9.52 | I150: 41.82 | J150: 148 | N150: 434
B151: 9.7051 | C151: 9.72 | D151: 00:01:03.325 | E151: 00:01:03.410 | F151: 151 | G151: 4.35 | H151: 9.56 | I151: 42.05 | J151: 149 | N151: 435
B152: 9.7251 | C152: 9.74 | D152: 00:01:03.415 | E152: 00:01:03.500 | F152: 150 | G152: 4.37 | H152: 9.6 | I152: 42.28 | J152: 150 | N152: 437
B153: 9.7451 | C153: 9.76 | D153: 00:01:03.505 | E153: 00:01:03.600 | F153: 149 | G153: 4.38 | H153: 9.64 | I153: 42.49 | J153: 151 | N153: 438
B154: 9.7651 | C154: 9.79 | D154: 00:01:03.605 | E154: 00:01:03.700 | F154: 148 | G154: 4.4 | H154: 9.67 | I154: 42.7 | J154: 152 | N154: 440
B155: 9.7951 | C155: 9.81 | D155: 00:01:03.705 | E155: 00:01:03.800 | F155: 147 | G155: 4.41 | H155: 9.71 | I155: 42.91 | J155: 153 | N155: 441
B156: 9.8151 | C156: 9.83 | D156: 00:01:03.805 | E156: 00:01:03.900 | F156: 146 | G156: 4.43 | H156: 9.74 | I156: 43.12 | J156: 154 | N156: 443
B157: 9.8351 | C157: 9.85 | D157: 00:01:03.905 | E157: 00:01:04 | F157: 145 | G157: 4.44 | H157: 9.78 | I157: 43.32 | J157: 155 | N157: 444
B158: 9.8551 | C158: 9.88 | D158: 00:01:04.005 | E158: 00:01:04.100 | F158: 144 | G158: 4.45 | H158: 9.82 | I158: 43.53 | J158: 156 | N158: 445
B159: 9.8851 | C159: 9.9 | D159: 00:01:04.105 | E159: 00:01:04.200 | F159: 143 | G159: 4.47 | H159: 9.85 | I159: 43.74 | J159: 157 | N159: 447
B160: 9.9051 | C160: 9.92 | D160: 00:01:04.205 | E160: 00:01:04.300 | F160: 142 | G160: 4.48 | H160: 9.89 | I160: 43.95 | J160: 158 | N160: 448
B161: 9.9251 | C161: 9.95 | D161: 00:01:04.305 | E161: 00:01:04.400 | F161: 141 | G161: 4.5 | H161: 9.92 | I161: 44.16 | J161: 159 | N161: 450
B162: 9.9551 | C162: 9.97 | D162: 00:01:04.405 | E162: 00:01:04.500 | F162: 140 | G162: 4.51 | H162: 9.96 | I162: 44.37 | J162: 160 | N162: 451
B163: 9.9751 | C163: 9.99 | D163: 00:01:04.505 | E163: 00:01:04.600 | F163: 139 | G163: 4.52 | H163: 10 | I163: 44.58 | J163: 161 | N163: 452
B164: 9.9951 | C164: 10.01 | D164: 00:01:04.605 | E164: 00:01:04.700 | F164: 138 | G164: 4.54 | H164: 10.03 | I164: 44.79 | J164: 162 | N164: 454
B165: 10.0151 | C165: 10.04 | D165: 00:01:04.705 | E165: 00:01:04.800 | F165: 137 | G165: 4.55 | H165: 10.07 | I165: 44.99 | J165: 163 | N165: 455
B166: 10.0451 | C166: 10.06 | D166: 00:01:04.805 | E166: 00:01:04.900 | F166: 136 | G166: 4.57 | H166: 10.1 | I166: 45.2 | J166: 164 | N166: 457
B167: 10.0651 | C167: 10.08 | D167: 00:01:04.905 | E167: 00:01:05 | F167: 135 | G167: 4.58 | H167: 10.14 | I167: 45.41 | J167: 165 | N167: 458
B168: 10.0851 | C168: 10.1 | D168: 00:01:05.005 | E168: 00:01:05.100 | F168: 134 | G168: 4.59 | H168: 10.18 | I168: 45.62 | J168: 166 | N168: 459
B169: 10.1051 | C169: 10.13 | D169: 00:01:05.105 | E169: 00:01:05.200 | F169: 133 | G169: 4.61 | H169: 10.21 | I169: 45.83 | J169: 167 | N169: 461
B170: 10.1351 | C170: 10.15 | D170: 00:01:05.205 | E170: 00:01:05.300 | F170: 132 | G170: 4.62 | H170: 10.25 | I170: 46.04 | J170: 168 | N170: 462
B171: 10.1551 | C171: 10.17 | D171: 00:01:05.305 | E171: 00:01:05.400 | F171: 131 | G171: 4.64 | H171: 10.28 | I171: 46.25 | J171: 169 | N171: 464
B172: 10.1751 | C172: 10.2 | D172: 00:01:05.405 | E172: 00:01:05.500 | F172: 130 | G172: 4.65 | H172: 10.32 | I172: 46.46 | J172: 170 | N172: 465
B173: 10.2051 | C173: 10.22 | D173: 00:01:05.505 | E173: 00:01:05.600 | F173: 129 | G173: 4.66 | H173: 10.36 | I173: 46.66 | J173: 171 | N173: 466
B174: 10.2251 | C174: 10.24 | D174: 00:01:05.605 | E174: 00:01:05.700 | F174: 128 | G174: 4.68 | H174: 10.39 | I174: 46.87 | J174: 172 | N174: 468
B175: 10.2451 | C175: 10.26 | D175: 00:01:05.705 | E175: 00:01:05.800 | F175: 127 | G175: 4.69 | H175: 10.43 | I175: 47.08 | J175: 173 | N175: 469
B176: 10.2651 | C176: 10.29 | D176: 00:01:05.805 | E176: 00:01:05.900 | F176: 126 | G176: 4.71 | H176: 10.46 | I176: 47.29 | J176: 174 | N176: 471
B177: 10.2951 | C177: 10.31 | D177: 00:01:05.905 | E177: 00:01:06 | F177: 125 | G177: 4.72 | H177: 10.5 | I177: 47.5 | J177: 175 | N177: 472
B178: 10.3151 | C178: 10.33 | D178: 00:01:06.005 | E178: 00:01:06.100 | F178: 124 | G178: 4.74 | H178: 10.54 | I178: 47.71 | J178: 176 | N178: 474
B179: 10.3351 | C179: 10.36 | D179: 00:01:06.105 | E179: 00:01:06.200 | F179: 123 | G179: 4.75 | H179: 10.57 | I179: 47.92 | J179: 177 | N179: 475
B180: 10.3651 | C180: 10.38 | D180: 00:01:06.205 | E180: 00:01:06.300 | F180: 122 | G180: 4.76 | H180: 10.61 | I180: 48.13 | J180: 178 | N180: 476
B181: 10.3851 | C181: 10.4 | D181: 00:01:06.305 | E181: 00:01:06.400 | F181: 121 | G181: 4.78 | H181: 10.64 | I181: 48.34 | J181: 179 | N181: 478
B182: 10.4051 | C182: 10.42 | D182: 00:01:06.405 | E182: 00:01:06.500 | F182: 120 | G182: 4.79 | H182: 10.68 | I182: 48.54 | J182: 180 | N182: 479
B183: 10.4251 | C183: 10.45 | D183: 00:01:06.505 | E183: 00:01:06.600 | F183: 119 | G183: 4.81 | H183: 10.72 | I183: 48.75 | J183: 181 | N183: 481
B184: 10.4551 | C184: 10.47 | D184: 00:01:06.605 | E184: 00:01:06.700 | F184: 118 | G184: 4.82 | H184: 10.75 | I184: 48.96 | J184: 182 | N184: 482
B185: 10.4751 | C185: 10.49 | D185: 00:01:06.705 | E185: 00:01:06.800 | F185: 117 | G185: 4.83 | H185: 10.79 | I185: 49.17 | J185: 183 | N185: 483
B186: 10.4951 | C186: 10.52 | D186: 00:01:06.805 | E186: 00:01:06.900 | F186: 116 | G186: 4.85 | H186: 10.82 | I186: 49.38 | J186: 184 | N186: 485
B187: 10.5251 | C187: 10.54 | D187: 00:01:06.905 | E187: 00:01:07 | F187: 115 | G187: 4.86 | H187: 10.86 | I187: 49.59 | J187: 185 | N187: 486
B188: 10.5451 | C188: 10.56 | D188: 00:01:07.005 | E188: 00:01:07.100 | F188: 114 | G188: 4.88 | H188: 10.9 | I188: 49.8 | J188: 186 | N188: 488
B189: 10.5651 | C189: 10.58 | D189: 00:01:07.105 | E189: 00:01:07.200 | F189: 113 | G189: 4.89 | H189: 10.93 | I189: 50.01 | J189: 187 | N189: 489
B190: 10.5851 | C190: 10.61 | D190: 00:01:07.205 | E190: 00:01:07.300 | F190: 112 | G190: 4.9 | H190: 10.97 | I190: 50.21 | J190: 188 | N190: 490
B191: 10.6151 | C191: 10.63 | D191: 00:01:07.305 | E191: 00:01:07.400 | F191: 111 | G191: 4.92 | H191: 11 | I191: 50.42 | J191: 189 | N191: 492
B192: 10.6351 | C192: 10.65 | D192: 00:01:07.405 | E192: 00:01:07.500 | F192: 110 | G192: 4.93 | H192: 11.04 | I192: 50.63 | J192: 190 | N192: 493
B193: 10.6551 | C193: 10.67 | D193: 00:01:07.505 | E193: 00:01:07.600 | F193: 109 | G193: 4.95 | H193: 11.08 | I193: 50.84 | J193: 191 | N193: 495
B194: 10.6751 | C194: 10.7 | D194: 00:01:07.605 | E194: 00:01:07.700 | F194: 108 | G194: =N194/100 -> 4.96 | H194: 11.11 | I194: 51.05 | J194: 192 | N194: 496
B195: 10.7051 | C195: 10.72 | D195: 00:01:07.705 | E195: 00:01:07.800 | F195: 107 | G195: 4.97 | H195: 11.15 | I195: 51.26 | J195: 193 | N195: 497
B196: 10.7251 | C196: 10.74 | D196: 00:01:07.805 | E196: 00:01:07.900 | F196: 106 | G196: 4.99 | H196: 11.18 | I196: 51.47 | J196: 194 | N196: 499
B197: 10.7451 | C197: 10.77 | D197: 00:01:07.905 | E197: 00:01:08 | F197: 105 | G197: 5 | H197: 11.22 | I197: 51.68 | J197: 195 | N197: 500
B198: 10.7751 | C198: 10.79 | D198: 00:01:08.005 | E198: 00:01:08.100 | F198: 104 | G198: 5.02 | H198: 11.26 | I198: 51.88 | J198: 196 | N198: 502
B199: 10.7951 | C199: 10.81 | D199: 00:01:08.105 | E199: 00:01:08.200 | F199: 103 | G199: 5.03 | H199: 11.29 | I199: 52.09 | J199: 197 | N199: 503
B200: 10.8151 | C200: 10.83 | D200: 00:01:08.205 | E200: 00:01:08.300 | F200: 102 | G200: 5.04 | H200: 11.33 | I200: 52.3 | J200: 198 | N200: 504
... 102 more rows

Sheet Be
A1: II. korcsoport LEÁNY Összetett verseny
A3: Név | B3: Sz.év | C3: 60 m | E3: Távolugrás | G3: Klabdahajítás | I3: Összpont | J3: helyezés | K3: Iskola
D4: =IF(C4<6.19,0,VLOOKUP(C4,rfut,5,TRUE)) -> 0 | F4: =IF(E4<1.79,0,VLOOKUP(E4,távol,4,TRUE)) -> 0 | H4: =IF(G4<4,0,VLOOKUP(G4,kisl,2,TRUE)) -> 0 | I4: =SUM(D4,F4,H4) -> 0 | J4: =RANK(I4,Egyéni!$J$3:$J$156,0) -> 18
D5: 0 | F5: 0 | H5: 0 | I5: =SUM(D5,F5,H5) -> 0 | J5: =RANK(I5,Egyéni!$J$3:$J$156,0) -> 18
D6: 0 | F6: 0 | H6: 0 | I6: 0 | J6: =RANK(I6,Egyéni!$J$3:$J$156,0) -> 18
D7: 0 | F7: 0 | H7: 0 | I7: 0 | J7: =RANK(I7,Egyéni!$J$3:$J$156,0) -> 18
D8: 0 | F8: 0 | H8: 0 | I8: 0 | J8: =RANK(I8,Egyéni!$J$3:$J$156,0) -> 18
D9: 0 | F9: 0 | H9: 0 | I9: 0 | J9: =RANK(I9,Egyéni!$J$3:$J$156,0) -> 18
D10: 0 | F10: 0 | H10: 0 | I10: 0 | J10: =RANK(I10,Egyéni!$J$3:$J$156,0) -> 18
D11: 0 | F11: 0 | H11: 0 | I11: 0 | J11: =RANK(I11,Egyéni!$J$3:$J$156,0) -> 18
D12: 0 | F12: 0 | H12: 0 | I12: 0 | J12: =RANK(I12,Egyéni!$J$3:$J$156,0) -> 18
D13: 0 | F13: 0 | H13: 0 | I13: 0 | J13: =RANK(I13,Egyéni!$J$3:$J$156,0) -> 18
D14: 0 | F14: 0 | H14: 0 | I14: 0 | J14: =RANK(I14,Egyéni!$J$3:$J$156,0) -> 18
D15: 0 | F15: 0 | H15: 0 | I15: 0 | J15: =RANK(I15,Egyéni!$J$3:$J$156,0) -> 18
D16: 0 | F16: 0 | H16: 0 | I16: 0 | J16: =RANK(I16,Egyéni!$J$3:$J$156,0) -> 18
D17: 0 | F17: 0 | H17: 0 | I17: 0 | J17: =RANK(I17,Egyéni!$J$3:$J$156,0) -> 18
D18: 0 | F18: 0 | H18: 0 | I18: 0 | J18: =RANK(I18,Egyéni!$J$3:$J$156,0) -> 18
D19: 0 | F19: 0 | H19: 0 | I19: 0 | J19: =RANK(I19,Egyéni!$J$3:$J$156,0) -> 18
D20: 0 | F20: 0 | H20: 0 | I20: 0 | J20: =RANK(I20,Egyéni!$J$3:$J$156,0) -> 18
D21: 0 | F21: 0 | H21: 0 | I21: 0 | J21: =RANK(I21,Egyéni!$J$3:$J$156,0) -> 18
D22: 0 | F22: 0 | H22: 0 | I22: 0 | J22: =RANK(I22,Egyéni!$J$3:$J$156,0) -> 18
D23: 0 | F23: 0 | H23: 0 | I23: 0 | J23: =RANK(I23,Egyéni!$J$3:$J$156,0) -> 18
D24: 0 | F24: 0 | H24: 0 | I24: 0 | J24: =RANK(I24,Egyéni!$J$3:$J$156,0) -> 18
D25: 0 | F25: 0 | H25: 0 | I25: 0 | J25: =RANK(I25,Egyéni!$J$3:$J$156,0) -> 18
A27: Maglódi Vermessy Péter Általános Iskola | K27: =RANK(K29,Csapat!$C$3:P30,0) -> 2
A28: Név | B28: Sz.év | C28: 60 m | E28: Távolugrás | G28: Klabdahajítás | I28: Összpont | J28: Helyezés
A29: Forgó Dorottya | B29: 2007 | C29: 11.76 | D29: =IF(C29<6.19,0,VLOOKUP(C29,rfut,5,TRUE)) -> 65 | E29: 2.6 | F29: =IF(E29<1.79,0,VLOOKUP(E29,távol,4,TRUE)) -> 42 | G29: 20.45 | H29: =IF(G29<4,0,VLOOKUP(G29,kisl,2,TRUE)) -> 59 | I29: =SUM(D29,F29,H29) -> 166 | J29: =RANK(I29,Egyéni!$J$3:$J$156,0) -> 11 | K29: =SUM(I29:I34)-MIN(I29:I34)+K34 -> 1037
A30: Sotónyi Lili | B30: 2007 | C30: 11.27 | D30: 84 | E30: 2.66 | F30: 46 | G30: 14.9 | H30: 39 | I30: 169 | J30: =RANK(I30,Egyéni!$J$3:$J$156,0) -> 10
A31: Vetési Dóra | B31: 2007 | C31: 12.04 | D31: 53 | E31: 2.95 | F31: 63 | G31: 16.7 | H31: 45 | I31: 161 | J31: =RANK(I31,Egyéni!$J$3:$J$156,0) -> 14
A32: Vince Kamilla | B32: 2008 | C32: 10.54 | D32: 115 | E32: 3 | F32: 66 | G32: 12.55 | H32: 30 | I32: 211 | J32: =RANK(I32,Egyéni!$J$3:$J$156,0) -> 5
A33: Németh Borbála | B33: 2007 | C33: 10.25 | D33: 127 | E33: 3 | F33: 66 | G33: 18.55 | H33: 52 | I33: 245 | J33: =RANK(I33,Egyéni!$J$3:$J$156,0) -> 1 | K33: 4×100 | L33: 00:01:10.090
D34: 0 | F34: 0 | H34: 0 | I34: 0 | J34: =RANK(I34,Egyéni!$J$3:$J$156,0) -> 18 | K34: =IF(L33<leány!$D$2,0,VLOOKUP(L33,hfut,3,TRUE)) -> 85
A37: Jászai Mari Általános Iskola Monor | K37: =RANK(K39,Csapat!$C$3:P40,0) -> 1
A38: Név | B38: Sz.év | C38: 60 m | E38: Távolugrás | G38: Klabdahajítás | I38: Összpont | J38: Helyezés
A39: Félix Viktória | B39: 2008 | C39: 10.98 | D39: =IF(C39<6.19,0,VLOOKUP(C39,rfut,5,TRUE)) -> 96 | E39: 2.8 | F39: =IF(E39<1.79,0,VLOOKUP(E39,távol,4,TRUE)) -> 54 | G39: 21.9 | H39: =IF(G39<4,0,VLOOKUP(G39,kisl,2,TRUE)) -> 65 | I39: =SUM(D39,F39,H39) -> 215 | J39: =RANK(I39,Egyéni!$J$3:$J$156,0) -> 3 | K39: =SUM(I39:I44)-MIN(I39:I44)+K44 -> 1115
A40: Neuwelt Petra | B40: 2007 | C40: 11.58 | D40: 72 | E40: 2.7 | F40: 48 | G40: 16.6 | H40: 45 | I40: 165 | J40: =RANK(I40,Egyéni!$J$3:$J$156,0) -> 12
A41: Bock Luca | B41: 2007 | C41: 10.31 | D41: 125 | E41: 2.8 | F41: 54 | G41: 13.7 | H41: 34 | I41: 213 | J41: =RANK(I41,Egyéni!$J$3:$J$156,0) -> 4
A42: Eöllös Emma | B42: 2008 | C42: 10.61 | D42: 112 | E42: 2.7 | F42: 48 | G42: 15 | H42: 39 | I42: 199 | J42: =RANK(I42,Egyéni!$J$3:$J$156,0) -> 6
A43: Magócsi Eszter | B43: 2007 | C43: 11.66 | D43: 69 | E43: 2.9 | F43: 60 | G43: 17.9 | H43: 49 | I43: 178 | J43: =RANK(I43,Egyéni!$J$3:$J$156,0) -> 8 | K43: 4×100 | L43: 00:01:10.650
A44: Rettegi Tímea | B44: 2008 | C44: 11.2 | D44: 87 | E44: 2.88 | F44: 59 | G44: 26.7 | H44: 84 | I44: 230 | J44: =RANK(I44,Egyéni!$J$3:$J$156,0) -> 2 | K44: =IF(L43<leány!$D$2,0,VLOOKUP(L43,hfut,3,TRUE)) -> 80
A47: Mende | K47: =RANK(K49,Csapat!$C$3:P50,0) -> 3
A48: Név | B48: Sz.év | C48: 60 m | E48: Távolugrás | G48: Klabdahajítás | I48: Összpont | J48: Helyezés
A49: Ádám Anna | B49: 2007 | C49: 11.68 | D49: =IF(C49<6.19,0,VLOOKUP(C49,rfut,5,TRUE)) -> 68 | E49: 2.63 | F49: =IF(E49<1.79,0,VLOOKUP(E49,távol,4,TRUE)) -> 44 | G49: 18.4 | H49: =IF(G49<4,0,VLOOKUP(G49,kisl,2,TRUE)) -> 51 | I49: =SUM(D49,F49,H49) -> 163 | J49: =RANK(I49,Egyéni!$J$3:$J$156,0) -> 13 | K49: =SUM(I49:I54)-MIN(I49:I54)+K54 -> 826
A50: Kernya Zoé | B50: 2007 | C50: 10.93 | D50: 98 | E50: 2.56 | F50: 40 | G50: 15.2 | H50: 40 | I50: 178 | J50: =RANK(I50,Egyéni!$J$3:$J$156,0) -> 8
A51: Renecz Ramóna | B51: 2008 | C51: 12.25 | D51: 45 | E51: 2 | F51: 10 | G51: 13.5 | H51: 34 | I51: 89 | J51: =RANK(I51,Egyéni!$J$3:$J$156,0) -> 17
A52: Turczer Jázmin | B52: 2008 | C52: 10.57 | D52: 113 | E52: 2.29 | F52: 26 | G52: 6.3 | H52: 8 | I52: 147 | J52: =RANK(I52,Egyéni!$J$3:$J$156,0) -> 15
A53: Vidák Klarissza | B53: 2008 | C53: 12.32 | D53: 43 | E53: 2.78 | F53: 53 | G53: 16.15 | H53: 43 | I53: 139 | J53: =RANK(I53,Egyéni!$J$3:$J$156,0) -> 16 | K53: 4×100 | L53: 00:01:21.610
A54: Vrábel Molli | B54: 2007 | C54: 11.2 | D54: 87 | E54: 2.7 | F54: 48 | G54: 21.6 | H54: 64 | I54: 199 | J54: =RANK(I54,Egyéni!$J$3:$J$156,0) -> 6 | K54: =IF(L53<leány!$D$2,0,VLOOKUP(L53,hfut,3,TRUE)) -> 0
K57: =RANK(K59,Csapat!$C$3:P60,0) -> 4
A58: Név | B58: Sz.év | C58: 60 m | E58: Távolugrás | G58: Klabdahajítás | I58: Összpont | J58: Helyezés
D59: =IF(C59<6.19,0,VLOOKUP(C59,rfut,5,TRUE)) -> 0 | F59: =IF(E59<1.79,0,VLOOKUP(E59,távol,4,TRUE)) -> 0 | H59: =IF(G59<4,0,VLOOKUP(G59,kisl,2,TRUE)) -> 0 | I59: =SUM(D59,F59,H59) -> 0 | J59: =RANK(I59,Egyéni!$J$3:$J$156,0) -> 18 | K59: =SUM(I59:I64)-MIN(I59:I64)+K64 -> 0
D60: 0 | F60: 0 | H60: 0 | I60: 0 | J60: =RANK(I60,Egyéni!$J$3:$J$156,0) -> 18
D61: 0 | F61: 0 | H61: 0 | I61: 0 | J61: =RANK(I61,Egyéni!$J$3:$J$156,0) -> 18
D62: 0 | F62: 0 | H62: 0 | I62: 0 | J62: =RANK(I62,Egyéni!$J$3:$J$156,0) -> 18
D63: 0 | F63: 0 | H63: 0 | I63: 0 | J63: =RANK(I63,Egyéni!$J$3:$J$156,0) -> 18 | K63: 4×100
D64: 0 | F64: 0 | H64: 0 | I64: 0 | J64: =RANK(I64,Egyéni!$J$3:$J$156,0) -> 18 | K64: =IF(L63<leány!$D$2,0,VLOOKUP(L63,hfut,3,TRUE)) -> 0
K67: =RANK(K69,Csapat!$C$3:P70,0) -> 4
A68: Név | B68: Sz.év | C68: 60 m | E68: Távolugrás | G68: Klabdahajítás | I68: Összpont | J68: Helyezés
D69: =IF(C69<6.19,0,VLOOKUP(C69,rfut,5,TRUE)) -> 0 | F69: =IF(E69<1.79,0,VLOOKUP(E69,távol,4,TRUE)) -> 0 | H69: =IF(G69<4,0,VLOOKUP(G69,kisl,2,TRUE)) -> 0 | I69: =SUM(D69,F69,H69) -> 0 | J69: =RANK(I69,Egyéni!$J$3:$J$156,0) -> 18 | K69: =SUM(I69:I74)-MIN(I69:I74)+K74 -> 0
D70: 0 | F70: 0 | H70: 0 | I70: 0 | J70: =RANK(I70,Egyéni!$J$3:$J$156,0) -> 18
D71: 0 | F71: 0 | H71: 0 | I71: 0 | J71: =RANK(I71,Egyéni!$J$3:$J$156,0) -> 18
D72: 0 | F72: 0 | H72: 0 | I72: 0 | J72: =RANK(I72,Egyéni!$J$3:$J$156,0) -> 18
D73: 0 | F73: 0 | H73: 0 | I73: 0 | J73: =RANK(I73,Egyéni!$J$3:$J$156,0) -> 18 | K73: 4×100
D74: 0 | F74: 0 | H74: 0 | I74: 0 | J74: =RANK(I74,Egyéni!$J$3:$J$156,0) -> 18 | K74: =IF(L73<leány!$D$2,0,VLOOKUP(L73,hfut,3,TRUE)) -> 0
K77: =RANK(K79,Csapat!$C$3:P80,0) -> 4
A78: Név | B78: Sz.év | C78: 60 m | E78: Távolugrás | G78: Klabdahajítás | I78: Összpont | J78: Helyezés
D79: =IF(C79<6.19,0,VLOOKUP(C79,rfut,5,TRUE)) -> 0 | F79: =IF(E79<1.79,0,VLOOKUP(E79,távol,4,TRUE)) -> 0 | H79: =IF(G79<4,0,VLOOKUP(G79,kisl,2,TRUE)) -> 0 | I79: =SUM(D79,F79,H79) -> 0 | J79: =RANK(I79,Egyéni!$J$3:$J$156,0) -> 18 | K79: =SUM(I79:I84)-MIN(I79:I84)+K84 -> 0
D80: 0 | F80: 0 | H80: 0 | I80: 0 | J80: =RANK(I80,Egyéni!$J$3:$J$156,0) -> 18
D81: 0 | F81: 0 | H81: 0 | I81: 0 | J81: =RANK(I81,Egyéni!$J$3:$J$156,0) -> 18
D82: 0 | F82: 0 | H82: 0 | I82: 0 | J82: =RANK(I82,Egyéni!$J$3:$J$156,0) -> 18
D83: 0 | F83: 0 | H83: 0 | I83: 0 | J83: =RANK(I83,Egyéni!$J$3:$J$156,0) -> 18 | K83: 4×100
D84: 0 | F84: 0 | H84: 0 | I84: 0 | J84: =RANK(I84,Egyéni!$J$3:$J$156,0) -> 18 | K84: =IF(L83<leány!$D$2,0,VLOOKUP(L83,hfut,3,TRUE)) -> 0
K87: =RANK(K89,Csapat!$C$3:P90,0) -> 4
A88: Név | B88: Sz.év | C88: 60 m | E88: Távolugrás | G88: Klabdahajítás | I88: Összpont | J88: Helyezés
D89: =IF(C89<6.19,0,VLOOKUP(C89,rfut,5,TRUE)) -> 0 | F89: =IF(E89<1.79,0,VLOOKUP(E89,távol,4,TRUE)) -> 0 | H89: =IF(G89<4,0,VLOOKUP(G89,kisl,2,TRUE)) -> 0 | I89: =SUM(D89,F89,H89) -> 0 | J89: =RANK(I89,Egyéni!$J$3:$J$156,0) -> 18 | K89: =SUM(I89:I94)-MIN(I89:I94)+K94 -> 0
D90: 0 | F90: 0 | H90: 0 | I90: 0 | J90: =RANK(I90,Egyéni!$J$3:$J$156,0) -> 18
D91: 0 | F91: 0 | H91: 0 | I91: 0 | J91: =RANK(I91,Egyéni!$J$3:$J$156,0) -> 18
D92: 0 | F92: 0 | H92: 0 | I92: 0 | J92: =RANK(I92,Egyéni!$J$3:$J$156,0) -> 18
D93: 0 | F93: 0 | H93: 0 | I93: 0 | J93: =RANK(I93,Egyéni!$J$3:$J$156,0) -> 18 | K93: 4×100
D94: 0 | F94: 0 | H94: 0 | I94: 0 | J94: =RANK(I94,Egyéni!$J$3:$J$156,0) -> 18 | K94: =IF(L93<leány!$D$2,0,VLOOKUP(L93,hfut,3,TRUE)) -> 0
K97: =RANK(K99,Csapat!$C$3:P100,0) -> 4
A98: Név | B98: Sz.év | C98: 60 m | E98: Távolugrás | G98: Klabdahajítás | I98: Összpont | J98: Helyezés
D99: =IF(C99<6.19,0,VLOOKUP(C99,rfut,5,TRUE)) -> 0 | F99: =IF(E99<1.79,0,VLOOKUP(E99,távol,4,TRUE)) -> 0 | H99: =IF(G99<4,0,VLOOKUP(G99,kisl,2,TRUE)) -> 0 | I99: =SUM(D99,F99,H99) -> 0 | J99: =RANK(I99,Egyéni!$J$3:$J$156,0) -> 18 | K99: =SUM(I99:I104)-MIN(I99:I104)+K104 -> 0
D100: 0 | F100: 0 | H100: 0 | I100: 0 | J100: =RANK(I100,Egyéni!$J$3:$J$156,0) -> 18
D101: 0 | F101: 0 | H101: 0 | I101: 0 | J101: =RANK(I101,Egyéni!$J$3:$J$156,0) -> 18
D102: 0 | F102: 0 | H102: 0 | I102: 0 | J102: =RANK(I102,Egyéni!$J$3:$J$156,0) -> 18
D103: 0 | F103: 0 | H103: 0 | I103: 0 | J103: =RANK(I103,Egyéni!$J$3:$J$156,0) -> 18 | K103: 4×100
D104: 0 | F104: 0 | H104: 0 | I104: 0 | J104: =RANK(I104,Egyéni!$J$3:$J$156,0) -> 18 | K104: =IF(L103<leány!$D$2,0,VLOOKUP(L103,hfut,3,TRUE)) -> 0
K107: =RANK(K109,Csapat!$C$3:P110,0) -> 4
A108: Név | B108: Sz.év | C108: 60 m | E108: Távolugrás | G108: Klabdahajítás | I108: Összpont | J108: Helyezés
D109: =IF(C109<6.19,0,VLOOKUP(C109,rfut,5,TRUE)) -> 0 | F109: =IF(E109<1.79,0,VLOOKUP(E109,távol,4,TRUE)) -> 0 | H109: =IF(G109<4,0,VLOOKUP(G109,kisl,2,TRUE)) -> 0 | I109: =SUM(D109,F109,H109) -> 0 | J109: =RANK(I109,Egyéni!$J$3:$J$156,0) -> 18 | K109: =SUM(I109:I114)-MIN(I109:I114)+K114 -> 0
D110: 0 | F110: 0 | H110: 0 | I110: 0 | J110: =RANK(I110,Egyéni!$J$3:$J$156,0) -> 18
D111: 0 | F111: 0 | H111: 0 | I111: 0 | J111: =RANK(I111,Egyéni!$J$3:$J$156,0) -> 18
D112: 0 | F112: 0 | H112: 0 | I112: 0 | J112: =RANK(I112,Egyéni!$J$3:$J$156,0) -> 18
D113: 0 | F113: 0 | H113: 0 | I113: 0 | J113: =RANK(I113,Egyéni!$J$3:$J$156,0) -> 18 | K113: 4×100
D114: 0 | F114: 0 | H114: 0 | I114: 0 | J114: =RANK(I114,Egyéni!$J$3:$J$156,0) -> 18 | K114: =IF(L113<leány!$D$2,0,VLOOKUP(L113,hfut,3,TRUE)) -> 0
K117: =RANK(K119,Csapat!$C$3:P120,0) -> 4
A118: Név | B118: Sz.év | C118: 60 m | E118: Távolugrás | G118: Klabdahajítás | I118: Összpont | J118: Helyezés
D119: =IF(C119<6.19,0,VLOOKUP(C119,rfut,5,TRUE)) -> 0 | F119: =IF(E119<1.79,0,VLOOKUP(E119,távol,4,TRUE)) -> 0 | H119: =IF(G119<4,0,VLOOKUP(G119,kisl,2,TRUE)) -> 0 | I119: =SUM(D119,F119,H119) -> 0 | J119: =RANK(I119,Egyéni!$J$3:$J$156,0) -> 18 | K119: =SUM(I119:I124)-MIN(I119:I124)+K124 -> 0
D120: 0 | F120: 0 | H120: 0 | I120: 0 | J120: =RANK(I120,Egyéni!$J$3:$J$156,0) -> 18
D121: 0 | F121: 0 | H121: 0 | I121: 0 | J121: =RANK(I121,Egyéni!$J$3:$J$156,0) -> 18
D122: 0 | F122: 0 | H122: 0 | I122: 0 | J122: =RANK(I122,Egyéni!$J$3:$J$156,0) -> 18
D123: 0 | F123: 0 | H123: 0 | I123: 0 | J123: =RANK(I123,Egyéni!$J$3:$J$156,0) -> 18 | K123: 4×100
D124: 0 | F124: 0 | H124: 0 | I124: 0 | J124: =RANK(I124,Egyéni!$J$3:$J$156,0) -> 18 | K124: =IF(L123<leány!$D$2,0,VLOOKUP(L123,hfut,3,TRUE)) -> 0
K127: =RANK(K129,Csapat!$C$3:P130,0) -> 4
A128: Név | B128: Sz.év | C128: 60 m | E128: Távolugrás | G128: Klabdahajítás | I128: Összpont | J128: Helyezés
D129: =IF(C129<6.19,0,VLOOKUP(C129,rfut,5,TRUE)) -> 0 | F129: =IF(E129<1.79,0,VLOOKUP(E129,távol,4,TRUE)) -> 0 | H129: =IF(G129<4,0,VLOOKUP(G129,kisl,2,TRUE)) -> 0 | I129: =SUM(D129,F129,H129) -> 0 | J129: =RANK(I129,Egyéni!$J$3:$J$156,0) -> 18 | K129: =SUM(I129:I134)-MIN(I129:I134)+K134 -> 0
D130: 0 | F130: 0 | H130: 0 | I130: 0 | J130: =RANK(I130,Egyéni!$J$3:$J$156,0) -> 18
D131: 0 | F131: 0 | H131: 0 | I131: 0 | J131: =RANK(I131,Egyéni!$J$3:$J$156,0) -> 18
D132: 0 | F132: 0 | H132: 0 | I132: 0 | J132: =RANK(I132,Egyéni!$J$3:$J$156,0) -> 18
D133: 0 | F133: 0 | H133: 0 | I133: 0 | J133: =RANK(I133,Egyéni!$J$3:$J$156,0) -> 18 | K133: 4×100
D134: 0 | F134: 0 | H134: 0 | I134: 0 | J134: =RANK(I134,Egyéni!$J$3:$J$156,0) -> 18 | K134: =IF(L133<leány!$D$2,0,VLOOKUP(L133,hfut,3,TRUE)) -> 0
K137: =RANK(K139,Csapat!$C$3:P140,0) -> 4
A138: Név | B138: Sz.év | C138: 60 m | E138: Távolugrás | G138: Klabdahajítás | I138: Összpont | J138: Helyezés
D139: =IF(C139<6.19,0,VLOOKUP(C139,rfut,5,TRUE)) -> 0 | F139: =IF(E139<1.79,0,VLOOKUP(E139,távol,4,TRUE)) -> 0 | H139: =IF(G139<4,0,VLOOKUP(G139,kisl,2,TRUE)) -> 0 | I139: =SUM(D139,F139,H139) -> 0 | J139: =RANK(I139,Egyéni!$J$3:$J$156,0) -> 18 | K139: =SUM(I139:I144)-MIN(I139:I144)+K144 -> 0
D140: 0 | F140: 0 | H140: 0 | I140: 0 | J140: =RANK(I140,Egyéni!$J$3:$J$156,0) -> 18
D141: 0 | F141: 0 | H141: 0 | I141: 0 | J141: =RANK(I141,Egyéni!$J$3:$J$156,0) -> 18
D142: 0 | F142: 0 | H142: 0 | I142: 0 | J142: =RANK(I142,Egyéni!$J$3:$J$156,0) -> 18
D143: 0 | F143: 0 | H143: 0 | I143: 0 | J143: =RANK(I143,Egyéni!$J$3:$J$156,0) -> 18 | K143: 4×100
D144: 0 | F144: 0 | H144: 0 | I144: 0 | J144: =RANK(I144,Egyéni!$J$3:$J$156,0) -> 18 | K144: =IF(L143<leány!$D$2,0,VLOOKUP(L143,hfut,3,TRUE)) -> 0
K147: =RANK(K149,Csapat!$C$3:P150,0) -> 4
A148: Név | B148: Sz.év | C148: 60 m | E148: Távolugrás | G148: Klabdahajítás | I148: Összpont | J148: Helyezés
D149: =IF(C149<6.19,0,VLOOKUP(C149,rfut,5,TRUE)) -> 0 | F149: =IF(E149<1.79,0,VLOOKUP(E149,távol,4,TRUE)) -> 0 | H149: =IF(G149<4,0,VLOOKUP(G149,kisl,2,TRUE)) -> 0 | I149: =SUM(D149,F149,H149) -> 0 | J149: =RANK(I149,Egyéni!$J$3:$J$156,0) -> 18 | K149: =SUM(I149:I154)-MIN(I149:I154)+K154 -> 0
D150: 0 | F150: 0 | H150: 0 | I150: 0 | J150: =RANK(I150,Egyéni!$J$3:$J$156,0) -> 18
D151: 0 | F151: 0 | H151: 0 | I151: 0 | J151: =RANK(I151,Egyéni!$J$3:$J$156,0) -> 18
D152: 0 | F152: 0 | H152: 0 | I152: 0 | J152: =RANK(I152,Egyéni!$J$3:$J$156,0) -> 18
D153: 0 | F153: 0 | H153: 0 | I153: 0 | J153: =RANK(I153,Egyéni!$J$3:$J$156,0) -> 18 | K153: 4×100
D154: 0 | F154: 0 | H154: 0 | I154: 0 | J154: =RANK(I154,Egyéni!$J$3:$J$156,0) -> 18 | K154: =IF(L153<leány!$D$2,0,VLOOKUP(L153,hfut,3,TRUE)) -> 0
K157: =RANK(K159,Csapat!$C$3:P160,0) -> 4
A158: Név | B158: Sz.év | C158: 60 m | E158: Távolugrás | G158: Klabdahajítás | I158: Összpont | J158: Helyezés
D159: =IF(C159<6.19,0,VLOOKUP(C159,rfut,5,TRUE)) -> 0 | F159: =IF(E159<1.79,0,VLOOKUP(E159,távol,4,TRUE)) -> 0 | H159: =IF(G159<4,0,VLOOKUP(G159,kisl,2,TRUE)) -> 0 | I159: =SUM(D159,F159,H159) -> 0 | J159: =RANK(I159,Egyéni!$J$3:$J$156,0) -> 18 | K159: =SUM(I159:I164)-MIN(I159:I164)+K164 -> 0
D160: 0 | F160: 0 | H160: 0 | I160: 0 | J160: =RANK(I160,Egyéni!$J$3:$J$156,0) -> 18
D161: 0 | F161: 0 | H161: 0 | I161: 0 | J161: =RANK(I161,Egyéni!$J$3:$J$156,0) -> 18
D162: 0 | F162: 0 | H162: 0 | I162: 0 | J162: =RANK(I162,Egyéni!$J$3:$J$156,0) -> 18
D163: 0 | F163: 0 | H163: 0 | I163: 0 | J163: =RANK(I163,Egyéni!$J$3:$J$156,0) -> 18 | K163: 4×100
D164: 0 | F164: 0 | H164: 0 | I164: 0 | J164: =RANK(I164,Egyéni!$J$3:$J$156,0) -> 18 | K164: =IF(L163<leány!$D$2,0,VLOOKUP(L163,hfut,3,TRUE)) -> 0
K167: =RANK(K169,Csapat!$C$3:P170,0) -> 4
A168: Név | B168: Sz.év | C168: 60 m | E168: Távolugrás | G168: Klabdahajítás | I168: Összpont | J168: Helyezés
D169: =IF(C169<6.19,0,VLOOKUP(C169,rfut,5,TRUE)) -> 0 | F169: =IF(E169<1.79,0,VLOOKUP(E169,távol,4,TRUE)) -> 0 | H169: =IF(G169<4,0,VLOOKUP(G169,kisl,2,TRUE)) -> 0 | I169: =SUM(D169,F169,H169) -> 0 | J169: =RANK(I169,Egyéni!$J$3:$J$156,0) -> 18 | K169: =SUM(I169:I174)-MIN(I169:I174)+K174 -> 0
D170: 0 | F170: 0 | H170: 0 | I170: 0 | J170: =RANK(I170,Egyéni!$J$3:$J$156,0) -> 18
D171: 0 | F171: 0 | H171: 0 | I171: 0 | J171: =RANK(I171,Egyéni!$J$3:$J$156,0) -> 18
D172: 0 | F172: 0 | H172: 0 | I172: 0 | J172: =RANK(I172,Egyéni!$J$3:$J$156,0) -> 18
D173: 0 | F173: 0 | H173: 0 | I173: 0 | J173: =RANK(I173,Egyéni!$J$3:$J$156,0) -> 18 | K173: 4×100
D174: 0 | F174: 0 | H174: 0 | I174: 0 | J174: =RANK(I174,Egyéni!$J$3:$J$156,0) -> 18 | K174: =IF(L173<leány!$D$2,0,VLOOKUP(L173,hfut,3,TRUE)) -> 0
K177: =RANK(K179,Csapat!$C$3:P180,0) -> 4
A178: Név | B178: Sz.év | C178: 60 m | E178: Távolugrás | G178: Klabdahajítás | I178: Összpont | J178: Helyezés
D179: =IF(C179<6.19,0,VLOOKUP(C179,rfut,5,TRUE)) -> 0 | F179: =IF(E179<1.79,0,VLOOKUP(E179,távol,4,TRUE)) -> 0 | H179: =IF(G179<4,0,VLOOKUP(G179,kisl,2,TRUE)) -> 0 | I179: =SUM(D179,F179,H179) -> 0 | J179: =RANK(I179,Egyéni!$J$3:$J$156,0) -> 18 | K179: =SUM(I179:I184)-MIN(I179:I184)+K184 -> 0
D180: 0 | F180: 0 | H180: 0 | I180: 0 | J180: =RANK(I180,Egyéni!$J$3:$J$156,0) -> 18
D181: 0 | F181: 0 | H181: 0 | I181: 0 | J181: =RANK(I181,Egyéni!$J$3:$J$156,0) -> 18
D182: 0 | F182: 0 | H182: 0 | I182: 0 | J182: =RANK(I182,Egyéni!$J$3:$J$156,0) -> 18
D183: 0 | F183: 0 | H183: 0 | I183: 0 | J183: =RANK(I183,Egyéni!$J$3:$J$156,0) -> 18 | K183: 4×100
D184: 0 | F184: 0 | H184: 0 | I184: 0 | J184: =RANK(I184,Egyéni!$J$3:$J$156,0) -> 18 | K184: =IF(L183<leány!$D$2,0,VLOOKUP(L183,hfut,3,TRUE)) -> 0
K187: =RANK(K189,Csapat!$C$3:P190,0) -> 4
A188: Név | B188: Sz.év | C188: 60 m | E188: Távolugrás | G188: Klabdahajítás | I188: Összpont | J188: Helyezés
D189: =IF(C189<6.19,0,VLOOKUP(C189,rfut,5,TRUE)) -> 0 | F189: =IF(E189<1.79,0,VLOOKUP(E189,távol,4,TRUE)) -> 0 | H189: =IF(G189<4,0,VLOOKUP(G189,kisl,2,TRUE)) -> 0 | I189: =SUM(D189,F189,H189) -> 0 | J189: =RANK(I189,Egyéni!$J$3:$J$156,0) -> 18 | K189: =SUM(I189:I194)-MIN(I189:I194)+K194 -> 0
D190: 0 | F190: 0 | H190: 0 | I190: 0 | J190: =RANK(I190,Egyéni!$J$3:$J$156,0) -> 18
D191: 0 | F191: 0 | H191: 0 | I191: 0 | J191: =RANK(I191,Egyéni!$J$3:$J$156,0) -> 18
D192: 0 | F192: 0 | H192: 0 | I192: 0 | J192: =RANK(I192,Egyéni!$J$3:$J$156,0) -> 18
D193: 0 | F193: 0 | H193: 0 | I193: 0 | J193: =RANK(I193,Egyéni!$J$3:$J$156,0) -> 18 | K193: 4×100
D194: 0 | F194: 0 | H194: 0 | I194: 0 | J194: =RANK(I194,Egyéni!$J$3:$J$156,0) -> 18 | K194: =IF(L193<leány!$D$2,0,VLOOKUP(L193,hfut,3,TRUE)) -> 0
K197: =RANK(K199,Csapat!$C$3:P200,0) -> 4
A198: Név | B198: Sz.év | C198: 60 m | E198: Távolugrás | G198: Klabdahajítás | I198: Összpont | J198: Helyezés
D199: =IF(C199<6.19,0,VLOOKUP(C199,rfut,5,TRUE)) -> 0 | F199: =IF(E199<1.79,0,VLOOKUP(E199,távol,4,TRUE)) -> 0 | H199: =IF(G199<4,0,VLOOKUP(G199,kisl,2,TRUE)) -> 0 | I199: =SUM(D199,F199,H199) -> 0 | J199: =RANK(I199,Egyéni!$J$3:$J$156,0) -> 18 | K199: =SUM(I199:I204)-MIN(I199:I204)+K204 -> 0
D200: 0 | F200: 0 | H200: 0 | I200: 0 | J200: =RANK(I200,Egyéni!$J$3:$J$156,0) -> 18
D201: 0 | F201: 0 | H201: 0 | I201: 0 | J201: =RANK(I201,Egyéni!$J$3:$J$156,0) -> 18
D202: 0 | F202: 0 | H202: 0 | I202: 0 | J202: =RANK(I202,Egyéni!$J$3:$J$156,0) -> 18
D203: 0 | F203: 0 | H203: 0 | I203: 0 | J203: =RANK(I203,Egyéni!$J$3:$J$156,0) -> 18 | K203: 4×100
D204: 0 | F204: 0 | H204: 0 | I204: 0 | J204: =RANK(I204,Egyéni!$J$3:$J$156,0) -> 18 | K204: =IF(L203<leány!$D$2,0,VLOOKUP(L203,hfut,3,TRUE)) -> 0
K207: =RANK(K209,Csapat!$C$3:P210,0) -> 4
A208: Név | B208: Sz.év | C208: 60 m | E208: Távolugrás | G208: Klabdahajítás | I208: Összpont | J208: Helyezés
D209: =IF(C209<6.19,0,VLOOKUP(C209,rfut,5,TRUE)) -> 0 | F209: =IF(E209<1.79,0,VLOOKUP(E209,távol,4,TRUE)) -> 0 | H209: =IF(G209<4,0,VLOOKUP(G209,kisl,2,TRUE)) -> 0 | I209: =SUM(D209,F209,H209) -> 0 | J209: =RANK(I209,Egyéni!$J$3:$J$156,0) -> 18 | K209: =SUM(I209:I214)-MIN(I209:I214)+K214 -> 0
D210: 0 | F210: 0 | H210: 0 | I210: 0 | J210: =RANK(I210,Egyéni!$J$3:$J$156,0) -> 18
D211: 0 | F211: 0 | H211: 0 | I211: 0 | J211: =RANK(I211,Egyéni!$J$3:$J$156,0) -> 18
D212: 0 | F212: 0 | H212: 0 | I212: 0 | J212: =RANK(I212,Egyéni!$J$3:$J$156,0) -> 18
D213: 0 | F213: 0 | H213: 0 | I213: 0 | J213: =RANK(I213,Egyéni!$J$3:$J$156,0) -> 18 | K213: 4×100
D214: 0 | F214: 0 | H214: 0 | I214: 0 | J214: =RANK(I214,Egyéni!$J$3:$J$156,0) -> 18 | K214: =IF(L213<leány!$D$2,0,VLOOKUP(L213,hfut,3,TRUE)) -> 0
K217: =RANK(K219,Csapat!$C$3:P220,0) -> 4
A218: Név | B218: Sz.év | C218: 60 m | E218: Távolugrás | G218: Klabdahajítás | I218: Összpont | J218: Helyezés
D219: =IF(C219<6.19,0,VLOOKUP(C219,rfut,5,TRUE)) -> 0 | F219: =IF(E219<1.79,0,VLOOKUP(E219,távol,4,TRUE)) -> 0 | H219: =IF(G219<4,0,VLOOKUP(G219,kisl,2,TRUE)) -> 0 | I219: =SUM(D219,F219,H219) -> 0 | J219: =RANK(I219,Egyéni!$J$3:$J$156,0) -> 18 | K219: =SUM(I219:I224)-MIN(I219:I224)+K224 -> 0
D220: 0 | F220: 0 | H220: 0 | I220: 0 | J220: =RANK(I220,Egyéni!$J$3:$J$156,0) -> 18
D221: 0 | F221: 0 | H221: 0 | I221: 0 | J221: =RANK(I221,Egyéni!$J$3:$J$156,0) -> 18
D222: 0 | F222: 0 | H222: 0 | I222: 0 | J222: =RANK(I222,Egyéni!$J$3:$J$156,0) -> 18
D223: 0 | F223: 0 | H223: 0 | I223: 0 | J223: =RANK(I223,Egyéni!$J$3:$J$156,0) -> 18 | K223: 4×100
D224: 0 | F224: 0 | H224: 0 | I224: 0 | J224: =RANK(I224,Egyéni!$J$3:$J$156,0) -> 18 | K224: =IF(L223<leány!$D$2,0,VLOOKUP(L223,hfut,3,TRUE)) -> 0
K227: =RANK(K229,Csapat!$C$3:P230,0) -> 4
A228: Név | B228: Sz.év | C228: 60 m | E228: Távolugrás | G228: Klabdahajítás | I228: Összpont | J228: Helyezés
D229: =IF(C229<6.19,0,VLOOKUP(C229,rfut,5,TRUE)) -> 0 | F229: =IF(E229<1.79,0,VLOOKUP(E229,távol,4,TRUE)) -> 0 | H229: =IF(G229<4,0,VLOOKUP(G229,kisl,2,TRUE)) -> 0 | I229: =SUM(D229,F229,H229) -> 0 | J229: =RANK(I229,Egyéni!$J$3:$J$156,0) -> 18 | K229: =SUM(I229:I234)-MIN(I229:I234)+K234 -> 0
D230: 0 | F230: 0 | H230: 0 | I230: 0 | J230: =RANK(I230,Egyéni!$J$3:$J$156,0) -> 18
D231: 0 | F231: 0 | H231: 0 | I231: 0 | J231: =RANK(I231,Egyéni!$J$3:$J$156,0) -> 18
D232: 0 | F232: 0 | H232: 0 | I232: 0 | J232: =RANK(I232,Egyéni!$J$3:$J$156,0) -> 18
D233: 0 | F233: 0 | H233: 0 | I233: 0 | J233: =RANK(I233,Egyéni!$J$3:$J$156,0) -> 18 | K233: 4×100
D234: 0 | F234: 0 | H234: 0 | I234: 0 | J234: =RANK(I234,Egyéni!$J$3:$J$156,0) -> 18 | K234: =IF(L233<leány!$D$2,0,VLOOKUP(L233,hfut,3,TRUE)) -> 0
K237: =RANK(K239,Csapat!$C$3:P240,0) -> 4
A238: Név | B238: Sz.év | C238: 60 m | E238: Távolugrás | G238: Klabdahajítás | I238: Összpont | J238: Helyezés
D239: =IF(C239<6.19,0,VLOOKUP(C239,rfut,5,TRUE)) -> 0 | F239: =IF(E239<1.79,0,VLOOKUP(E239,távol,4,TRUE)) -> 0 | H239: =IF(G239<4,0,VLOOKUP(G239,kisl,2,TRUE)) -> 0 | I239: =SUM(D239,F239,H239) -> 0 | J239: =RANK(I239,Egyéni!$J$3:$J$156,0) -> 18 | K239: =SUM(I239:I244)-MIN(I239:I244)+K244 -> 0
D240: 0 | F240: 0 | H240: 0 | I240: 0 | J240: =RANK(I240,Egyéni!$J$3:$J$156,0) -> 18
D241: 0 | F241: 0 | H241: 0 | I241: 0 | J241: =RANK(I241,Egyéni!$J$3:$J$156,0) -> 18
D242: 0 | F242: 0 | H242: 0 | I242: 0 | J242: =RANK(I242,Egyéni!$J$3:$J$156,0) -> 18
D243: 0 | F243: 0 | H243: 0 | I243: 0 | J243: =RANK(I243,Egyéni!$J$3:$J$156,0) -> 18 | K243: 4×100
D244: 0 | F244: 0 | H244: 0 | I244: 0 | J244: =RANK(I244,Egyéni!$J$3:$J$156,0) -> 18 | K244: =IF(L243<leány!$D$2,0,VLOOKUP(L243,hfut,3,TRUE)) -> 0

Sheet Egyéni
A1: II. korcsoport LEÁNY EGYÉNI végeredmény (Rendezés Ctrl + d )
A2: Ssz | B2: Név | C2: Szév | D2: 60 m | E2: p | F2: T | G2: p | H2: Kisl | I2: p | J2: Összp | L2: Iskola
A3: 1. | B3: =Be!A33 -> Németh Borbála | C3: =Be!B33 -> 2007 | D3: =Be!C33 -> 10.25 | E3: =Be!D33 -> 127 | F3: =Be!E33 -> 3 | G3: =Be!F33 -> 66 | H3: =Be!G33 -> 18.55 | I3: =Be!H33 -> 52 | J3: =Be!I33 -> 245 | L3: =Be!A27 -> Maglódi Vermessy Péter Általános Iskola
A4: 2. | B4: =Be!A44 -> Rettegi Tímea | C4: =Be!B44 -> 2008 | D4: =Be!C44 -> 11.2 | E4: =Be!D44 -> 87 | F4: =Be!E44 -> 2.88 | G4: =Be!F44 -> 59 | H4: =Be!G44 -> 26.7 | I4: =Be!H44 -> 84 | J4: =Be!I44 -> 230 | L4: =Be!A37 -> Jászai Mari Általános Iskola Monor
A5: 3. | B5: =Be!A39 -> Félix Viktória | C5: =Be!B39 -> 2008 | D5: =Be!C39 -> 10.98 | E5: =Be!D39 -> 96 | F5: =Be!E39 -> 2.8 | G5: =Be!F39 -> 54 | H5: =Be!G39 -> 21.9 | I5: =Be!H39 -> 65 | J5: =Be!I39 -> 215 | L5: =Be!A37 -> Jászai Mari Általános Iskola Monor
A6: 4. | B6: =Be!A41 -> Bock Luca | C6: =Be!B41 -> 2007 | D6: =Be!C41 -> 10.31 | E6: =Be!D41 -> 125 | F6: =Be!E41 -> 2.8 | G6: =Be!F41 -> 54 | H6: =Be!G41 -> 13.7 | I6: =Be!H41 -> 34 | J6: =Be!I41 -> 213 | L6: =Be!A37 -> Jászai Mari Általános Iskola Monor
A7: 5. | B7: =Be!A32 -> Vince Kamilla | C7: =Be!B32 -> 2008 | D7: =Be!C32 -> 10.54 | E7: =Be!D32 -> 115 | F7: =Be!E32 -> 3 | G7: =Be!F32 -> 66 | H7: =Be!G32 -> 12.55 | I7: =Be!H32 -> 30 | J7: =Be!I32 -> 211 | L7: =Be!A27 -> Maglódi Vermessy Péter Általános Iskola
A8: 6. | B8: =Be!A42 -> Eöllös Emma | C8: =Be!B42 -> 2008 | D8: =Be!C42 -> 10.61 | E8: =Be!D42 -> 112 | F8: =Be!E42 -> 2.7 | G8: =Be!F42 -> 48 | H8: =Be!G42 -> 15 | I8: =Be!H42 -> 39 | J8: =Be!I42 -> 199 | L8: =Be!A37 -> Jászai Mari Általános Iskola Monor
A9: 7. | B9: =Be!A54 -> Vrábel Molli | C9: =Be!B54 -> 2007 | D9: =Be!C54 -> 11.2 | E9: =Be!D54 -> 87 | F9: =Be!E54 -> 2.7 | G9: =Be!F54 -> 48 | H9: =Be!G54 -> 21.6 | I9: =Be!H54 -> 64 | J9: =Be!I54 -> 199 | L9: =Be!A47 -> Mende
A10: 8. | B10: =Be!A43 -> Magócsi Eszter | C10: =Be!B43 -> 2007 | D10: =Be!C43 -> 11.66 | E10: =Be!D43 -> 69 | F10: =Be!E43 -> 2.9 | G10: =Be!F43 -> 60 | H10: =Be!G43 -> 17.9 | I10: =Be!H43 -> 49 | J10: =Be!I43 -> 178 | L10: =Be!A37 -> Jászai Mari Általános Iskola Monor
A11: 9. | B11: =Be!A50 -> Kernya Zoé | C11: =Be!B50 -> 2007 | D11: =Be!C50 -> 10.93 | E11: =Be!D50 -> 98 | F11: =Be!E50 -> 2.56 | G11: =Be!F50 -> 40 | H11: =Be!G50 -> 15.2 | I11: =Be!H50 -> 40 | J11: =Be!I50 -> 178 | L11: =Be!A47 -> Mende
A12: 10. | B12: =Be!A30 -> Sotónyi Lili | C12: =Be!B30 -> 2007 | D12: =Be!C30 -> 11.27 | E12: =Be!D30 -> 84 | F12: =Be!E30 -> 2.66 | G12: =Be!F30 -> 46 | H12: =Be!G30 -> 14.9 | I12: =Be!H30 -> 39 | J12: =Be!I30 -> 169 | L12: =Be!A27 -> Maglódi Vermessy Péter Általános Iskola
A13: 11. | B13: =Be!A29 -> Forgó Dorottya | C13: =Be!B29 -> 2007 | D13: =Be!C29 -> 11.76 | E13: =Be!D29 -> 65 | F13: =Be!E29 -> 2.6 | G13: =Be!F29 -> 42 | H13: =Be!G29 -> 20.45 | I13: =Be!H29 -> 59 | J13: =Be!I29 -> 166 | L13: =Be!A27 -> Maglódi Vermessy Péter Általános Iskola
A14: 12. | B14: =Be!A40 -> Neuwelt Petra | C14: =Be!B40 -> 2007 | D14: =Be!C40 -> 11.58 | E14: =Be!D40 -> 72 | F14: =Be!E40 -> 2.7 | G14: =Be!F40 -> 48 | H14: =Be!G40 -> 16.6 | I14: =Be!H40 -> 45 | J14: =Be!I40 -> 165 | L14: =Be!A37 -> Jászai Mari Általános Iskola Monor
A15: 13. | B15: =Be!A49 -> Ádám Anna | C15: =Be!B49 -> 2007 | D15: =Be!C49 -> 11.68 | E15: =Be!D49 -> 68 | F15: =Be!E49 -> 2.63 | G15: =Be!F49 -> 44 | H15: =Be!G49 -> 18.4 | I15: =Be!H49 -> 51 | J15: =Be!I49 -> 163 | L15: =Be!A47 -> Mende
A16: 14. | B16: =Be!A31 -> Vetési Dóra | C16: =Be!B31 -> 2007 | D16: =Be!C31 -> 12.04 | E16: =Be!D31 -> 53 | F16: =Be!E31 -> 2.95 | G16: =Be!F31 -> 63 | H16: =Be!G31 -> 16.7 | I16: =Be!H31 -> 45 | J16: =Be!I31 -> 161 | L16: =Be!A27 -> Maglódi Vermessy Péter Általános Iskola
A17: 15. | B17: =Be!A52 -> Turczer Jázmin | C17: =Be!B52 -> 2008 | D17: =Be!C52 -> 10.57 | E17: =Be!D52 -> 113 | F17: =Be!E52 -> 2.29 | G17: =Be!F52 -> 26 | H17: =Be!G52 -> 6.3 | I17: =Be!H52 -> 8 | J17: =Be!I52 -> 147 | L17: =Be!A47 -> Mende
A18: 16. | B18: =Be!A53 -> Vidák Klarissza | C18: =Be!B53 -> 2008 | D18: =Be!C53 -> 12.32 | E18: =Be!D53 -> 43 | F18: =Be!E53 -> 2.78 | G18: =Be!F53 -> 53 | H18: =Be!G53 -> 16.15 | I18: =Be!H53 -> 43 | J18: =Be!I53 -> 139 | L18: =Be!A47 -> Mende
A19: 17. | B19: =Be!A51 -> Renecz Ramóna | C19: =Be!B51 -> 2008 | D19: =Be!C51 -> 12.25 | E19: =Be!D51 -> 45 | F19: =Be!E51 -> 2 | G19: =Be!F51 -> 10 | H19: =Be!G51 -> 13.5 | I19: =Be!H51 -> 34 | J19: =Be!I51 -> 89 | L19: =Be!A47 -> Mende
A20: 18. | B20: =Be!A4 -> 0 | C20: =Be!B4 -> 0 | D20: =Be!C4 -> 0 | E20: =Be!D4 -> 0 | F20: =Be!E4 -> 0 | G20: =Be!F4 -> 0 | H20: =Be!G4 -> 0 | I20: =Be!H4 -> 0 | J20: =Be!I4 -> 0 | L20: =Be!K4 -> 0
A21: 19. | B21: =Be!A5 -> 0 | C21: =Be!B5 -> 0 | D21: =Be!C5 -> 0 | E21: =Be!D5 -> 0 | F21: =Be!E5 -> 0 | G21: =Be!F5 -> 0 | H21: =Be!G5 -> 0 | I21: =Be!H5 -> 0 | J21: =Be!I5 -> 0 | L21: =Be!K5 -> 0
A22: 20. | B22: =Be!A6 -> 0 | C22: =Be!B6 -> 0 | D22: =Be!C6 -> 0 | E22: =Be!D6 -> 0 | F22: =Be!E6 -> 0 | G22: =Be!F6 -> 0 | H22: =Be!G6 -> 0 | I22: =Be!H6 -> 0 | J22: =Be!I6 -> 0 | L22: =Be!K6 -> 0
A23: 21. | B23: =Be!A7 -> 0 | C23: =Be!B7 -> 0 | D23: =Be!C7 -> 0 | E23: =Be!D7 -> 0 | F23: =Be!E7 -> 0 | G23: =Be!F7 -> 0 | H23: =Be!G7 -> 0 | I23: =Be!H7 -> 0 | J23: =Be!I7 -> 0 | L23: =Be!K7 -> 0
A24: 22. | B24: =Be!A8 -> 0 | C24: =Be!B8 -> 0 | D24: =Be!C8 -> 0 | E24: =Be!D8 -> 0 | F24: =Be!E8 -> 0 | G24: =Be!F8 -> 0 | H24: =Be!G8 -> 0 | I24: =Be!H8 -> 0 | J24: =Be!I8 -> 0 | L24: =Be!K8 -> 0
A25: 23. | B25: =Be!A9 -> 0 | C25: =Be!B9 -> 0 | D25: =Be!C9 -> 0 | E25: =Be!D9 -> 0 | F25: =Be!E9 -> 0 | G25: =Be!F9 -> 0 | H25: =Be!G9 -> 0 | I25: =Be!H9 -> 0 | J25: =Be!I9 -> 0 | L25: =Be!K9 -> 0
A26: 24. | B26: =Be!A10 -> 0 | C26: =Be!B10 -> 0 | D26: =Be!C10 -> 0 | E26: =Be!D10 -> 0 | F26: =Be!E10 -> 0 | G26: =Be!F10 -> 0 | H26: =Be!G10 -> 0 | I26: =Be!H10 -> 0 | J26: =Be!I10 -> 0 | L26: =Be!K10 -> 0
A27: 25. | B27: =Be!A11 -> 0 | C27: =Be!B11 -> 0 | D27: =Be!C11 -> 0 | E27: =Be!D11 -> 0 | F27: =Be!E11 -> 0 | G27: =Be!F11 -> 0 | H27: =Be!G11 -> 0 | I27: =Be!H11 -> 0 | J27: =Be!I11 -> 0 | L27: =Be!K11 -> 0
A28: 26. | B28: =Be!A12 -> 0 | C28: =Be!B12 -> 0 | D28: =Be!C12 -> 0 | E28: =Be!D12 -> 0 | F28: =Be!E12 -> 0 | G28: =Be!F12 -> 0 | H28: =Be!G12 -> 0 | I28: =Be!H12 -> 0 | J28: =Be!I12 -> 0 | L28: =Be!K12 -> 0
A29: 27. | B29: =Be!A13 -> 0 | C29: =Be!B13 -> 0 | D29: =Be!C13 -> 0 | E29: =Be!D13 -> 0 | F29: =Be!E13 -> 0 | G29: =Be!F13 -> 0 | H29: =Be!G13 -> 0 | I29: =Be!H13 -> 0 | J29: =Be!I13 -> 0 | L29: =Be!K13 -> 0
A30: 28. | B30: =Be!A14 -> 0 | C30: =Be!B14 -> 0 | D30: =Be!C14 -> 0 | E30: =Be!D14 -> 0 | F30: =Be!E14 -> 0 | G30: =Be!F14 -> 0 | H30: =Be!G14 -> 0 | I30: =Be!H14 -> 0 | J30: =Be!I14 -> 0 | L30: =Be!K14 -> 0
A31: 29. | B31: =Be!A15 -> 0 | C31: =Be!B15 -> 0 | D31: =Be!C15 -> 0 | E31: =Be!D15 -> 0 | F31: =Be!E15 -> 0 | G31: =Be!F15 -> 0 | H31: =Be!G15 -> 0 | I31: =Be!H15 -> 0 | J31: =Be!I15 -> 0 | L31: =Be!K15 -> 0
A32: 30. | B32: =Be!A16 -> 0 | C32: =Be!B16 -> 0 | D32: =Be!C16 -> 0 | E32: =Be!D16 -> 0 | F32: =Be!E16 -> 0 | G32: =Be!F16 -> 0 | H32: =Be!G16 -> 0 | I32: =Be!H16 -> 0 | J32: =Be!I16 -> 0 | L32: =Be!K16 -> 0
A33: 31. | B33: =Be!A17 -> 0 | C33: =Be!B17 -> 0 | D33: =Be!C17 -> 0 | E33: =Be!D17 -> 0 | F33: =Be!E17 -> 0 | G33: =Be!F17 -> 0 | H33: =Be!G17 -> 0 | I33: =Be!H17 -> 0 | J33: =Be!I17 -> 0 | L33: =Be!K17 -> 0
A34: 32. | B34: =Be!A18 -> 0 | C34: =Be!B18 -> 0 | D34: =Be!C18 -> 0 | E34: =Be!D18 -> 0 | F34: =Be!E18 -> 0 | G34: =Be!F18 -> 0 | H34: =Be!G18 -> 0 | I34: =Be!H18 -> 0 | J34: =Be!I18 -> 0 | L34: =Be!K18 -> 0
A35: 33. | B35: =Be!A19 -> 0 | C35: =Be!B19 -> 0 | D35: =Be!C19 -> 0 | E35: =Be!D19 -> 0 | F35: =Be!E19 -> 0 | G35: =Be!F19 -> 0 | H35: =Be!G19 -> 0 | I35: =Be!H19 -> 0 | J35: =Be!I19 -> 0 | L35: =Be!K19 -> 0
A36: 34. | B36: =Be!A20 -> 0 | C36: =Be!B20 -> 0 | D36: =Be!C20 -> 0 | E36: =Be!D20 -> 0 | F36: =Be!E20 -> 0 | G36: =Be!F20 -> 0 | H36: =Be!G20 -> 0 | I36: =Be!H20 -> 0 | J36: =Be!I20 -> 0 | L36: =Be!K20 -> 0
A37: 35. | B37: =Be!A21 -> 0 | C37: =Be!B21 -> 0 | D37: =Be!C21 -> 0 | E37: =Be!D21 -> 0 | F37: =Be!E21 -> 0 | G37: =Be!F21 -> 0 | H37: =Be!G21 -> 0 | I37: =Be!H21 -> 0 | J37: =Be!I21 -> 0 | L37: =Be!K21 -> 0
A38: 36. | B38: =Be!A22 -> 0 | C38: =Be!B22 -> 0 | D38: =Be!C22 -> 0 | E38: =Be!D22 -> 0 | F38: =Be!E22 -> 0 | G38: =Be!F22 -> 0 | H38: =Be!G22 -> 0 | I38: =Be!H22 -> 0 | J38: =Be!I22 -> 0 | L38: =Be!K22 -> 0
A39: 37. | B39: =Be!A23 -> 0 | C39: =Be!B23 -> 0 | D39: =Be!C23 -> 0 | E39: =Be!D23 -> 0 | F39: =Be!E23 -> 0 | G39: =Be!F23 -> 0 | H39: =Be!G23 -> 0 | I39: =Be!H23 -> 0 | J39: =Be!I23 -> 0 | L39: =Be!K23 -> 0
A40: 38. | B40: =Be!A24 -> 0 | C40: =Be!B24 -> 0 | D40: =Be!C24 -> 0 | E40: =Be!D24 -> 0 | F40: =Be!E24 -> 0 | G40: =Be!F24 -> 0 | H40: =Be!G24 -> 0 | I40: =Be!H24 -> 0 | J40: =Be!I24 -> 0 | L40: =Be!K24 -> 0
A41: 39. | B41: =Be!A25 -> 0 | C41: =Be!B25 -> 0 | D41: =Be!C25 -> 0 | E41: =Be!D25 -> 0 | F41: =Be!E25 -> 0 | G41: =Be!F25 -> 0 | H41: =Be!G25 -> 0 | I41: =Be!H25 -> 0 | J41: =Be!I25 -> 0 | L41: =Be!K25 -> 0
A42: 40. | B42: =Be!A34 -> 0 | C42: =Be!B34 -> 0 | D42: =Be!C34 -> 0 | E42: =Be!D34 -> 0 | F42: =Be!E34 -> 0 | G42: =Be!F34 -> 0 | H42: =Be!G34 -> 0 | I42: =Be!H34 -> 0 | J42: =Be!I34 -> 0 | L42: =Be!A27 -> Maglódi Vermessy Péter Általános Iskola
A43: 41. | B43: =Be!A59 -> 0 | C43: =Be!B59 -> 0 | D43: =Be!C59 -> 0 | E43: =Be!D59 -> 0 | F43: =Be!E59 -> 0 | G43: =Be!F59 -> 0 | H43: =Be!G59 -> 0 | I43: =Be!H59 -> 0 | J43: =Be!I59 -> 0 | L43: =Be!A57 -> 0
A44: 42. | B44: =Be!A60 -> 0 | C44: =Be!B60 -> 0 | D44: =Be!C60 -> 0 | E44: =Be!D60 -> 0 | F44: =Be!E60 -> 0 | G44: =Be!F60 -> 0 | H44: =Be!G60 -> 0 | I44: =Be!H60 -> 0 | J44: =Be!I60 -> 0 | L44: =Be!A57 -> 0
A45: 43. | B45: =Be!A61 -> 0 | C45: =Be!B61 -> 0 | D45: =Be!C61 -> 0 | E45: =Be!D61 -> 0 | F45: =Be!E61 -> 0 | G45: =Be!F61 -> 0 | H45: =Be!G61 -> 0 | I45: =Be!H61 -> 0 | J45: =Be!I61 -> 0 | L45: =Be!A57 -> 0
A46: 44. | B46: =Be!A62 -> 0 | C46: =Be!B62 -> 0 | D46: =Be!C62 -> 0 | E46: =Be!D62 -> 0 | F46: =Be!E62 -> 0 | G46: =Be!F62 -> 0 | H46: =Be!G62 -> 0 | I46: =Be!H62 -> 0 | J46: =Be!I62 -> 0 | L46: =Be!A57 -> 0
A47: 45. | B47: =Be!A63 -> 0 | C47: =Be!B63 -> 0 | D47: =Be!C63 -> 0 | E47: =Be!D63 -> 0 | F47: =Be!E63 -> 0 | G47: =Be!F63 -> 0 | H47: =Be!G63 -> 0 | I47: =Be!H63 -> 0 | J47: =Be!I63 -> 0 | L47: =Be!A57 -> 0
A48: 46. | B48: =Be!A64 -> 0 | C48: =Be!B64 -> 0 | D48: =Be!C64 -> 0 | E48: =Be!D64 -> 0 | F48: =Be!E64 -> 0 | G48: =Be!F64 -> 0 | H48: =Be!G64 -> 0 | I48: =Be!H64 -> 0 | J48: =Be!I64 -> 0 | L48: =Be!A57 -> 0
A49: 47. | B49: =Be!A69 -> 0 | C49: =Be!B69 -> 0 | D49: =Be!C69 -> 0 | E49: =Be!D69 -> 0 | F49: =Be!E69 -> 0 | G49: =Be!F69 -> 0 | H49: =Be!G69 -> 0 | I49: =Be!H69 -> 0 | J49: =Be!I69 -> 0 | L49: =Be!A67 -> 0
A50: 48. | B50: =Be!A70 -> 0 | C50: =Be!B70 -> 0 | D50: =Be!C70 -> 0 | E50: =Be!D70 -> 0 | F50: =Be!E70 -> 0 | G50: =Be!F70 -> 0 | H50: =Be!G70 -> 0 | I50: =Be!H70 -> 0 | J50: =Be!I70 -> 0 | L50: =Be!A67 -> 0
A51: 49. | B51: =Be!A71 -> 0 | C51: =Be!B71 -> 0 | D51: =Be!C71 -> 0 | E51: =Be!D71 -> 0 | F51: =Be!E71 -> 0 | G51: =Be!F71 -> 0 | H51: =Be!G71 -> 0 | I51: =Be!H71 -> 0 | J51: =Be!I71 -> 0 | L51: =Be!A67 -> 0
A52: 50. | B52: =Be!A72 -> 0 | C52: =Be!B72 -> 0 | D52: =Be!C72 -> 0 | E52: =Be!D72 -> 0 | F52: =Be!E72 -> 0 | G52: =Be!F72 -> 0 | H52: =Be!G72 -> 0 | I52: =Be!H72 -> 0 | J52: =Be!I72 -> 0 | L52: =Be!A67 -> 0
A53: 51. | B53: =Be!A73 -> 0 | C53: =Be!B73 -> 0 | D53: =Be!C73 -> 0 | E53: =Be!D73 -> 0 | F53: =Be!E73 -> 0 | G53: =Be!F73 -> 0 | H53: =Be!G73 -> 0 | I53: =Be!H73 -> 0 | J53: =Be!I73 -> 0 | L53: =Be!A67 -> 0
A54: 52. | B54: =Be!A74 -> 0 | C54: =Be!B74 -> 0 | D54: =Be!C74 -> 0 | E54: =Be!D74 -> 0 | F54: =Be!E74 -> 0 | G54: =Be!F74 -> 0 | H54: =Be!G74 -> 0 | I54: =Be!H74 -> 0 | J54: =Be!I74 -> 0 | L54: =Be!A67 -> 0
A55: 53. | B55: =Be!A79 -> 0 | C55: =Be!B79 -> 0 | D55: =Be!C79 -> 0 | E55: =Be!D79 -> 0 | F55: =Be!E79 -> 0 | G55: =Be!F79 -> 0 | H55: =Be!G79 -> 0 | I55: =Be!H79 -> 0 | J55: =Be!I79 -> 0 | L55: =Be!A77 -> 0
A56: 54. | B56: =Be!A80 -> 0 | C56: =Be!B80 -> 0 | D56: =Be!C80 -> 0 | E56: =Be!D80 -> 0 | F56: =Be!E80 -> 0 | G56: =Be!F80 -> 0 | H56: =Be!G80 -> 0 | I56: =Be!H80 -> 0 | J56: =Be!I80 -> 0 | L56: =Be!A77 -> 0
A57: 55. | B57: =Be!A81 -> 0 | C57: =Be!B81 -> 0 | D57: =Be!C81 -> 0 | E57: =Be!D81 -> 0 | F57: =Be!E81 -> 0 | G57: =Be!F81 -> 0 | H57: =Be!G81 -> 0 | I57: =Be!H81 -> 0 | J57: =Be!I81 -> 0 | L57: =Be!A77 -> 0
A58: 56. | B58: =Be!A82 -> 0 | C58: =Be!B82 -> 0 | D58: =Be!C82 -> 0 | E58: =Be!D82 -> 0 | F58: =Be!E82 -> 0 | G58: =Be!F82 -> 0 | H58: =Be!G82 -> 0 | I58: =Be!H82 -> 0 | J58: =Be!I82 -> 0 | L58: =Be!A77 -> 0
A59: 57. | B59: =Be!A83 -> 0 | C59: =Be!B83 -> 0 | D59: =Be!C83 -> 0 | E59: =Be!D83 -> 0 | F59: =Be!E83 -> 0 | G59: =Be!F83 -> 0 | H59: =Be!G83 -> 0 | I59: =Be!H83 -> 0 | J59: =Be!I83 -> 0 | L59: =Be!A77 -> 0
A60: 58. | B60: =Be!A84 -> 0 | C60: =Be!B84 -> 0 | D60: =Be!C84 -> 0 | E60: =Be!D84 -> 0 | F60: =Be!E84 -> 0 | G60: =Be!F84 -> 0 | H60: =Be!G84 -> 0 | I60: =Be!H84 -> 0 | J60: =Be!I84 -> 0 | L60: =Be!A77 -> 0
A61: 59. | B61: =Be!A89 -> 0 | C61: =Be!B89 -> 0 | D61: =Be!C89 -> 0 | E61: =Be!D89 -> 0 | F61: =Be!E89 -> 0 | G61: =Be!F89 -> 0 | H61: =Be!G89 -> 0 | I61: =Be!H89 -> 0 | J61: =Be!I89 -> 0 | L61: =Be!A87 -> 0
A62: 60. | B62: =Be!A90 -> 0 | C62: =Be!B90 -> 0 | D62: =Be!C90 -> 0 | E62: =Be!D90 -> 0 | F62: =Be!E90 -> 0 | G62: =Be!F90 -> 0 | H62: =Be!G90 -> 0 | I62: =Be!H90 -> 0 | J62: =Be!I90 -> 0 | L62: =Be!A87 -> 0
A63: 61. | B63: =Be!A91 -> 0 | C63: =Be!B91 -> 0 | D63: =Be!C91 -> 0 | E63: =Be!D91 -> 0 | F63: =Be!E91 -> 0 | G63: =Be!F91 -> 0 | H63: =Be!G91 -> 0 | I63: =Be!H91 -> 0 | J63: =Be!I91 -> 0 | L63: =Be!A87 -> 0
A64: 62. | B64: =Be!A92 -> 0 | C64: =Be!B92 -> 0 | D64: =Be!C92 -> 0 | E64: =Be!D92 -> 0 | F64: =Be!E92 -> 0 | G64: =Be!F92 -> 0 | H64: =Be!G92 -> 0 | I64: =Be!H92 -> 0 | J64: =Be!I92 -> 0 | L64: =Be!A87 -> 0
A65: 63. | B65: =Be!A93 -> 0 | C65: =Be!B93 -> 0 | D65: =Be!C93 -> 0 | E65: =Be!D93 -> 0 | F65: =Be!E93 -> 0 | G65: =Be!F93 -> 0 | H65: =Be!G93 -> 0 | I65: =Be!H93 -> 0 | J65: =Be!I93 -> 0 | L65: =Be!A87 -> 0
A66: 64. | B66: =Be!A94 -> 0 | C66: =Be!B94 -> 0 | D66: =Be!C94 -> 0 | E66: =Be!D94 -> 0 | F66: =Be!E94 -> 0 | G66: =Be!F94 -> 0 | H66: =Be!G94 -> 0 | I66: =Be!H94 -> 0 | J66: =Be!I94 -> 0 | L66: =Be!A87 -> 0
A67: 65. | B67: =Be!A99 -> 0 | C67: =Be!B99 -> 0 | D67: =Be!C99 -> 0 | E67: =Be!D99 -> 0 | F67: =Be!E99 -> 0 | G67: =Be!F99 -> 0 | H67: =Be!G99 -> 0 | I67: =Be!H99 -> 0 | J67: =Be!I99 -> 0 | L67: =Be!A97 -> 0
A68: 66. | B68: =Be!A100 -> 0 | C68: =Be!B100 -> 0 | D68: =Be!C100 -> 0 | E68: =Be!D100 -> 0 | F68: =Be!E100 -> 0 | G68: =Be!F100 -> 0 | H68: =Be!G100 -> 0 | I68: =Be!H100 -> 0 | J68: =Be!I100 -> 0 | L68: =Be!A97 -> 0
A69: 67. | B69: =Be!A101 -> 0 | C69: =Be!B101 -> 0 | D69: =Be!C101 -> 0 | E69: =Be!D101 -> 0 | F69: =Be!E101 -> 0 | G69: =Be!F101 -> 0 | H69: =Be!G101 -> 0 | I69: =Be!H101 -> 0 | J69: =Be!I101 -> 0 | L69: =Be!A97 -> 0
A70: 68. | B70: =Be!A102 -> 0 | C70: =Be!B102 -> 0 | D70: =Be!C102 -> 0 | E70: =Be!D102 -> 0 | F70: =Be!E102 -> 0 | G70: =Be!F102 -> 0 | H70: =Be!G102 -> 0 | I70: =Be!H102 -> 0 | J70: =Be!I102 -> 0 | L70: =Be!A97 -> 0
A71: 69. | B71: =Be!A103 -> 0 | C71: =Be!B103 -> 0 | D71: =Be!C103 -> 0 | E71: =Be!D103 -> 0 | F71: =Be!E103 -> 0 | G71: =Be!F103 -> 0 | H71: =Be!G103 -> 0 | I71: =Be!H103 -> 0 | J71: =Be!I103 -> 0 | L71: =Be!A97 -> 0
A72: 70. | B72: =Be!A104 -> 0 | C72: =Be!B104 -> 0 | D72: =Be!C104 -> 0 | E72: =Be!D104 -> 0 | F72: =Be!E104 -> 0 | G72: =Be!F104 -> 0 | H72: =Be!G104 -> 0 | I72: =Be!H104 -> 0 | J72: =Be!I104 -> 0 | L72: =Be!A97 -> 0
A73: 71. | B73: =Be!A109 -> 0 | C73: =Be!B109 -> 0 | D73: =Be!C109 -> 0 | E73: =Be!D109 -> 0 | F73: =Be!E109 -> 0 | G73: =Be!F109 -> 0 | H73: =Be!G109 -> 0 | I73: =Be!H109 -> 0 | J73: =Be!I109 -> 0 | L73: =Be!A107 -> 0
A74: 72. | B74: =Be!A110 -> 0 | C74: =Be!B110 -> 0 | D74: =Be!C110 -> 0 | E74: =Be!D110 -> 0 | F74: =Be!E110 -> 0 | G74: =Be!F110 -> 0 | H74: =Be!G110 -> 0 | I74: =Be!H110 -> 0 | J74: =Be!I110 -> 0 | L74: =Be!A107 -> 0
A75: 73. | B75: =Be!A111 -> 0 | C75: =Be!B111 -> 0 | D75: =Be!C111 -> 0 | E75: =Be!D111 -> 0 | F75: =Be!E111 -> 0 | G75: =Be!F111 -> 0 | H75: =Be!G111 -> 0 | I75: =Be!H111 -> 0 | J75: =Be!I111 -> 0 | L75: =Be!A107 -> 0
A76: 74. | B76: =Be!A112 -> 0 | C76: =Be!B112 -> 0 | D76: =Be!C112 -> 0 | E76: =Be!D112 -> 0 | F76: =Be!E112 -> 0 | G76: =Be!F112 -> 0 | H76: =Be!G112 -> 0 | I76: =Be!H112 -> 0 | J76: =Be!I112 -> 0 | L76: =Be!A107 -> 0
A77: 75. | B77: =Be!A113 -> 0 | C77: =Be!B113 -> 0 | D77: =Be!C113 -> 0 | E77: =Be!D113 -> 0 | F77: =Be!E113 -> 0 | G77: =Be!F113 -> 0 | H77: =Be!G113 -> 0 | I77: =Be!H113 -> 0 | J77: =Be!I113 -> 0 | L77: =Be!A107 -> 0
A78: 76. | B78: =Be!A114 -> 0 | C78: =Be!B114 -> 0 | D78: =Be!C114 -> 0 | E78: =Be!D114 -> 0 | F78: =Be!E114 -> 0 | G78: =Be!F114 -> 0 | H78: =Be!G114 -> 0 | I78: =Be!H114 -> 0 | J78: =Be!I114 -> 0 | L78: =Be!A107 -> 0
A79: 77. | B79: =Be!A119 -> 0 | C79: =Be!B119 -> 0 | D79: =Be!C119 -> 0 | E79: =Be!D119 -> 0 | F79: =Be!E119 -> 0 | G79: =Be!F119 -> 0 | H79: =Be!G119 -> 0 | I79: =Be!H119 -> 0 | J79: =Be!I119 -> 0 | L79: =Be!A117 -> 0
A80: 78. | B80: =Be!A120 -> 0 | C80: =Be!B120 -> 0 | D80: =Be!C120 -> 0 | E80: =Be!D120 -> 0 | F80: =Be!E120 -> 0 | G80: =Be!F120 -> 0 | H80: =Be!G120 -> 0 | I80: =Be!H120 -> 0 | J80: =Be!I120 -> 0 | L80: =Be!A117 -> 0
A81: 79. | B81: =Be!A121 -> 0 | C81: =Be!B121 -> 0 | D81: =Be!C121 -> 0 | E81: =Be!D121 -> 0 | F81: =Be!E121 -> 0 | G81: =Be!F121 -> 0 | H81: =Be!G121 -> 0 | I81: =Be!H121 -> 0 | J81: =Be!I121 -> 0 | L81: =Be!A117 -> 0
A82: 80. | B82: =Be!A122 -> 0 | C82: =Be!B122 -> 0 | D82: =Be!C122 -> 0 | E82: =Be!D122 -> 0 | F82: =Be!E122 -> 0 | G82: =Be!F122 -> 0 | H82: =Be!G122 -> 0 | I82: =Be!H122 -> 0 | J82: =Be!I122 -> 0 | L82: =Be!A117 -> 0
A83: 81. | B83: =Be!A123 -> 0 | C83: =Be!B123 -> 0 | D83: =Be!C123 -> 0 | E83: =Be!D123 -> 0 | F83: =Be!E123 -> 0 | G83: =Be!F123 -> 0 | H83: =Be!G123 -> 0 | I83: =Be!H123 -> 0 | J83: =Be!I123 -> 0 | L83: =Be!A117 -> 0
A84: 82. | B84: =Be!A124 -> 0 | C84: =Be!B124 -> 0 | D84: =Be!C124 -> 0 | E84: =Be!D124 -> 0 | F84: =Be!E124 -> 0 | G84: =Be!F124 -> 0 | H84: =Be!G124 -> 0 | I84: =Be!H124 -> 0 | J84: =Be!I124 -> 0 | L84: =Be!A117 -> 0
A85: 83. | B85: =Be!A129 -> 0 | C85: =Be!B129 -> 0 | D85: =Be!C129 -> 0 | E85: =Be!D129 -> 0 | F85: =Be!E129 -> 0 | G85: =Be!F129 -> 0 | H85: =Be!G129 -> 0 | I85: =Be!H129 -> 0 | J85: =Be!I129 -> 0 | L85: =Be!A127 -> 0
A86: 84. | B86: =Be!A130 -> 0 | C86: =Be!B130 -> 0 | D86: =Be!C130 -> 0 | E86: =Be!D130 -> 0 | F86: =Be!E130 -> 0 | G86: =Be!F130 -> 0 | H86: =Be!G130 -> 0 | I86: =Be!H130 -> 0 | J86: =Be!I130 -> 0 | L86: =Be!A127 -> 0
A87: 85. | B87: =Be!A131 -> 0 | C87: =Be!B131 -> 0 | D87: =Be!C131 -> 0 | E87: =Be!D131 -> 0 | F87: =Be!E131 -> 0 | G87: =Be!F131 -> 0 | H87: =Be!G131 -> 0 | I87: =Be!H131 -> 0 | J87: =Be!I131 -> 0 | L87: =Be!A127 -> 0
A88: 86. | B88: =Be!A132 -> 0 | C88: =Be!B132 -> 0 | D88: =Be!C132 -> 0 | E88: =Be!D132 -> 0 | F88: =Be!E132 -> 0 | G88: =Be!F132 -> 0 | H88: =Be!G132 -> 0 | I88: =Be!H132 -> 0 | J88: =Be!I132 -> 0 | L88: =Be!A127 -> 0
A89: 87. | B89: =Be!A133 -> 0 | C89: =Be!B133 -> 0 | D89: =Be!C133 -> 0 | E89: =Be!D133 -> 0 | F89: =Be!E133 -> 0 | G89: =Be!F133 -> 0 | H89: =Be!G133 -> 0 | I89: =Be!H133 -> 0 | J89: =Be!I133 -> 0 | L89: =Be!A127 -> 0
A90: 88. | B90: =Be!A134 -> 0 | C90: =Be!B134 -> 0 | D90: =Be!C134 -> 0 | E90: =Be!D134 -> 0 | F90: =Be!E134 -> 0 | G90: =Be!F134 -> 0 | H90: =Be!G134 -> 0 | I90: =Be!H134 -> 0 | J90: =Be!I134 -> 0 | L90: =Be!A127 -> 0
A91: 89. | B91: =Be!A139 -> 0 | C91: =Be!B139 -> 0 | D91: =Be!C139 -> 0 | E91: =Be!D139 -> 0 | F91: =Be!E139 -> 0 | G91: =Be!F139 -> 0 | H91: =Be!G139 -> 0 | I91: =Be!H139 -> 0 | J91: =Be!I139 -> 0 | L91: =Be!A137 -> 0
A92: 90. | B92: =Be!A140 -> 0 | C92: =Be!B140 -> 0 | D92: =Be!C140 -> 0 | E92: =Be!D140 -> 0 | F92: =Be!E140 -> 0 | G92: =Be!F140 -> 0 | H92: =Be!G140 -> 0 | I92: =Be!H140 -> 0 | J92: =Be!I140 -> 0 | L92: =Be!A137 -> 0
A93: 91. | B93: =Be!A141 -> 0 | C93: =Be!B141 -> 0 | D93: =Be!C141 -> 0 | E93: =Be!D141 -> 0 | F93: =Be!E141 -> 0 | G93: =Be!F141 -> 0 | H93: =Be!G141 -> 0 | I93: =Be!H141 -> 0 | J93: =Be!I141 -> 0 | L93: =Be!A137 -> 0
A94: 92. | B94: =Be!A142 -> 0 | C94: =Be!B142 -> 0 | D94: =Be!C142 -> 0 | E94: =Be!D142 -> 0 | F94: =Be!E142 -> 0 | G94: =Be!F142 -> 0 | H94: =Be!G142 -> 0 | I94: =Be!H142 -> 0 | J94: =Be!I142 -> 0 | L94: =Be!A137 -> 0
A95: 93. | B95: =Be!A143 -> 0 | C95: =Be!B143 -> 0 | D95: =Be!C143 -> 0 | E95: =Be!D143 -> 0 | F95: =Be!E143 -> 0 | G95: =Be!F143 -> 0 | H95: =Be!G143 -> 0 | I95: =Be!H143 -> 0 | J95: =Be!I143 -> 0 | L95: =Be!A137 -> 0
A96: 94. | B96: =Be!A144 -> 0 | C96: =Be!B144 -> 0 | D96: =Be!C144 -> 0 | E96: =Be!D144 -> 0 | F96: =Be!E144 -> 0 | G96: =Be!F144 -> 0 | H96: =Be!G144 -> 0 | I96: =Be!H144 -> 0 | J96: =Be!I144 -> 0 | L96: =Be!A137 -> 0
A97: 95. | B97: =Be!A149 -> 0 | C97: =Be!B149 -> 0 | D97: =Be!C149 -> 0 | E97: =Be!D149 -> 0 | F97: =Be!E149 -> 0 | G97: =Be!F149 -> 0 | H97: =Be!G149 -> 0 | I97: =Be!H149 -> 0 | J97: =Be!I149 -> 0 | L97: =Be!A147 -> 0
A98: 96. | B98: =Be!A150 -> 0 | C98: =Be!B150 -> 0 | D98: =Be!C150 -> 0 | E98: =Be!D150 -> 0 | F98: =Be!E150 -> 0 | G98: =Be!F150 -> 0 | H98: =Be!G150 -> 0 | I98: =Be!H150 -> 0 | J98: =Be!I150 -> 0 | L98: =Be!A147 -> 0
A99: 97. | B99: =Be!A151 -> 0 | C99: =Be!B151 -> 0 | D99: =Be!C151 -> 0 | E99: =Be!D151 -> 0 | F99: =Be!E151 -> 0 | G99: =Be!F151 -> 0 | H99: =Be!G151 -> 0 | I99: =Be!H151 -> 0 | J99: =Be!I151 -> 0 | L99: =Be!A147 -> 0
A100: 98. | B100: =Be!A152 -> 0 | C100: =Be!B152 -> 0 | D100: =Be!C152 -> 0 | E100: =Be!D152 -> 0 | F100: =Be!E152 -> 0 | G100: =Be!F152 -> 0 | H100: =Be!G152 -> 0 | I100: =Be!H152 -> 0 | J100: =Be!I152 -> 0 | L100: =Be!A147 -> 0
A101: 99. | B101: =Be!A153 -> 0 | C101: =Be!B153 -> 0 | D101: =Be!C153 -> 0 | E101: =Be!D153 -> 0 | F101: =Be!E153 -> 0 | G101: =Be!F153 -> 0 | H101: =Be!G153 -> 0 | I101: =Be!H153 -> 0 | J101: =Be!I153 -> 0 | L101: =Be!A147 -> 0
A102: 100. | B102: =Be!A154 -> 0 | C102: =Be!B154 -> 0 | D102: =Be!C154 -> 0 | E102: =Be!D154 -> 0 | F102: =Be!E154 -> 0 | G102: =Be!F154 -> 0 | H102: =Be!G154 -> 0 | I102: =Be!H154 -> 0 | J102: =Be!I154 -> 0 | L102: =Be!A147 -> 0
A103: 101. | B103: =Be!A159 -> 0 | C103: =Be!B159 -> 0 | D103: =Be!C159 -> 0 | E103: =Be!D159 -> 0 | F103: =Be!E159 -> 0 | G103: =Be!F159 -> 0 | H103: =Be!G159 -> 0 | I103: =Be!H159 -> 0 | J103: =Be!I159 -> 0 | L103: =Be!A157 -> 0
A104: 102. | B104: =Be!A160 -> 0 | C104: =Be!B160 -> 0 | D104: =Be!C160 -> 0 | E104: =Be!D160 -> 0 | F104: =Be!E160 -> 0 | G104: =Be!F160 -> 0 | H104: =Be!G160 -> 0 | I104: =Be!H160 -> 0 | J104: =Be!I160 -> 0 | L104: =Be!A157 -> 0
A105: 103. | B105: =Be!A161 -> 0 | C105: =Be!B161 -> 0 | D105: =Be!C161 -> 0 | E105: =Be!D161 -> 0 | F105: =Be!E161 -> 0 | G105: =Be!F161 -> 0 | H105: =Be!G161 -> 0 | I105: =Be!H161 -> 0 | J105: =Be!I161 -> 0 | L105: =Be!A157 -> 0
A106: 104. | B106: =Be!A162 -> 0 | C106: =Be!B162 -> 0 | D106: =Be!C162 -> 0 | E106: =Be!D162 -> 0 | F106: =Be!E162 -> 0 | G106: =Be!F162 -> 0 | H106: =Be!G162 -> 0 | I106: =Be!H162 -> 0 | J106: =Be!I162 -> 0 | L106: =Be!A157 -> 0
A107: 105. | B107: =Be!A163 -> 0 | C107: =Be!B163 -> 0 | D107: =Be!C163 -> 0 | E107: =Be!D163 -> 0 | F107: =Be!E163 -> 0 | G107: =Be!F163 -> 0 | H107: =Be!G163 -> 0 | I107: =Be!H163 -> 0 | J107: =Be!I163 -> 0 | L107: =Be!A157 -> 0
A108: 106. | B108: =Be!A164 -> 0 | C108: =Be!B164 -> 0 | D108: =Be!C164 -> 0 | E108: =Be!D164 -> 0 | F108: =Be!E164 -> 0 | G108: =Be!F164 -> 0 | H108: =Be!G164 -> 0 | I108: =Be!H164 -> 0 | J108: =Be!I164 -> 0 | L108: =Be!A157 -> 0
A109: 107. | B109: =Be!A169 -> 0 | C109: =Be!B169 -> 0 | D109: =Be!C169 -> 0 | E109: =Be!D169 -> 0 | F109: =Be!E169 -> 0 | G109: =Be!F169 -> 0 | H109: =Be!G169 -> 0 | I109: =Be!H169 -> 0 | J109: =Be!I169 -> 0 | L109: =Be!A167 -> 0
A110: 108. | B110: =Be!A170 -> 0 | C110: =Be!B170 -> 0 | D110: =Be!C170 -> 0 | E110: =Be!D170 -> 0 | F110: =Be!E170 -> 0 | G110: =Be!F170 -> 0 | H110: =Be!G170 -> 0 | I110: =Be!H170 -> 0 | J110: =Be!I170 -> 0 | L110: =Be!A167 -> 0
A111: 109. | B111: =Be!A171 -> 0 | C111: =Be!B171 -> 0 | D111: =Be!C171 -> 0 | E111: =Be!D171 -> 0 | F111: =Be!E171 -> 0 | G111: =Be!F171 -> 0 | H111: =Be!G171 -> 0 | I111: =Be!H171 -> 0 | J111: =Be!I171 -> 0 | L111: =Be!A167 -> 0
A112: 110. | B112: =Be!A172 -> 0 | C112: =Be!B172 -> 0 | D112: =Be!C172 -> 0 | E112: =Be!D172 -> 0 | F112: =Be!E172 -> 0 | G112: =Be!F172 -> 0 | H112: =Be!G172 -> 0 | I112: =Be!H172 -> 0 | J112: =Be!I172 -> 0 | L112: =Be!A167 -> 0
A113: 111. | B113: =Be!A173 -> 0 | C113: =Be!B173 -> 0 | D113: =Be!C173 -> 0 | E113: =Be!D173 -> 0 | F113: =Be!E173 -> 0 | G113: =Be!F173 -> 0 | H113: =Be!G173 -> 0 | I113: =Be!H173 -> 0 | J113: =Be!I173 -> 0 | L113: =Be!A167 -> 0
A114: 112. | B114: =Be!A174 -> 0 | C114: =Be!B174 -> 0 | D114: =Be!C174 -> 0 | E114: =Be!D174 -> 0 | F114: =Be!E174 -> 0 | G114: =Be!F174 -> 0 | H114: =Be!G174 -> 0 | I114: =Be!H174 -> 0 | J114: =Be!I174 -> 0 | L114: =Be!A167 -> 0
A115: 113. | B115: =Be!A179 -> 0 | C115: =Be!B179 -> 0 | D115: =Be!C179 -> 0 | E115: =Be!D179 -> 0 | F115: =Be!E179 -> 0 | G115: =Be!F179 -> 0 | H115: =Be!G179 -> 0 | I115: =Be!H179 -> 0 | J115: =Be!I179 -> 0 | L115: =Be!A177 -> 0
A116: 114. | B116: =Be!A180 -> 0 | C116: =Be!B180 -> 0 | D116: =Be!C180 -> 0 | E116: =Be!D180 -> 0 | F116: =Be!E180 -> 0 | G116: =Be!F180 -> 0 | H116: =Be!G180 -> 0 | I116: =Be!H180 -> 0 | J116: =Be!I180 -> 0 | L116: =Be!A177 -> 0
A117: 115. | B117: =Be!A181 -> 0 | C117: =Be!B181 -> 0 | D117: =Be!C181 -> 0 | E117: =Be!D181 -> 0 | F117: =Be!E181 -> 0 | G117: =Be!F181 -> 0 | H117: =Be!G181 -> 0 | I117: =Be!H181 -> 0 | J117: =Be!I181 -> 0 | L117: =Be!A177 -> 0
A118: 116. | B118: =Be!A182 -> 0 | C118: =Be!B182 -> 0 | D118: =Be!C182 -> 0 | E118: =Be!D182 -> 0 | F118: =Be!E182 -> 0 | G118: =Be!F182 -> 0 | H118: =Be!G182 -> 0 | I118: =Be!H182 -> 0 | J118: =Be!I182 -> 0 | L118: =Be!A177 -> 0
A119: 117. | B119: =Be!A183 -> 0 | C119: =Be!B183 -> 0 | D119: =Be!C183 -> 0 | E119: =Be!D183 -> 0 | F119: =Be!E183 -> 0 | G119: =Be!F183 -> 0 | H119: =Be!G183 -> 0 | I119: =Be!H183 -> 0 | J119: =Be!I183 -> 0 | L119: =Be!A177 -> 0
A120: 118. | B120: =Be!A184 -> 0 | C120: =Be!B184 -> 0 | D120: =Be!C184 -> 0 | E120: =Be!D184 -> 0 | F120: =Be!E184 -> 0 | G120: =Be!F184 -> 0 | H120: =Be!G184 -> 0 | I120: =Be!H184 -> 0 | J120: =Be!I184 -> 0 | L120: =Be!A177 -> 0
A121: 119. | B121: =Be!A189 -> 0 | C121: =Be!B189 -> 0 | D121: =Be!C189 -> 0 | E121: =Be!D189 -> 0 | F121: =Be!E189 -> 0 | G121: =Be!F189 -> 0 | H121: =Be!G189 -> 0 | I121: =Be!H189 -> 0 | J121: =Be!I189 -> 0 | L121: =Be!A187 -> 0
A122: 120. | B122: =Be!A190 -> 0 | C122: =Be!B190 -> 0 | D122: =Be!C190 -> 0 | E122: =Be!D190 -> 0 | F122: =Be!E190 -> 0 | G122: =Be!F190 -> 0 | H122: =Be!G190 -> 0 | I122: =Be!H190 -> 0 | J122: =Be!I190 -> 0 | L122: =Be!A187 -> 0
A123: 121. | B123: =Be!A191 -> 0 | C123: =Be!B191 -> 0 | D123: =Be!C191 -> 0 | E123: =Be!D191 -> 0 | F123: =Be!E191 -> 0 | G123: =Be!F191 -> 0 | H123: =Be!G191 -> 0 | I123: =Be!H191 -> 0 | J123: =Be!I191 -> 0 | L123: =Be!A187 -> 0
A124: 122. | B124: =Be!A192 -> 0 | C124: =Be!B192 -> 0 | D124: =Be!C192 -> 0 | E124: =Be!D192 -> 0 | F124: =Be!E192 -> 0 | G124: =Be!F192 -> 0 | H124: =Be!G192 -> 0 | I124: =Be!H192 -> 0 | J124: =Be!I192 -> 0 | L124: =Be!A187 -> 0
A125: 123. | B125: =Be!A193 -> 0 | C125: =Be!B193 -> 0 | D125: =Be!C193 -> 0 | E125: =Be!D193 -> 0 | F125: =Be!E193 -> 0 | G125: =Be!F193 -> 0 | H125: =Be!G193 -> 0 | I125: =Be!H193 -> 0 | J125: =Be!I193 -> 0 | L125: =Be!A187 -> 0
A126: 124. | B126: =Be!A194 -> 0 | C126: =Be!B194 -> 0 | D126: =Be!C194 -> 0 | E126: =Be!D194 -> 0 | F126: =Be!E194 -> 0 | G126: =Be!F194 -> 0 | H126: =Be!G194 -> 0 | I126: =Be!H194 -> 0 | J126: =Be!I194 -> 0 | L126: =Be!A187 -> 0
A127: 125. | B127: =Be!A199 -> 0 | C127: =Be!B199 -> 0 | D127: =Be!C199 -> 0 | E127: =Be!D199 -> 0 | F127: =Be!E199 -> 0 | G127: =Be!F199 -> 0 | H127: =Be!G199 -> 0 | I127: =Be!H199 -> 0 | J127: =Be!I199 -> 0 | L127: =Be!A197 -> 0
A128: 126. | B128: =Be!A200 -> 0 | C128: =Be!B200 -> 0 | D128: =Be!C200 -> 0 | E128: =Be!D200 -> 0 | F128: =Be!E200 -> 0 | G128: =Be!F200 -> 0 | H128: =Be!G200 -> 0 | I128: =Be!H200 -> 0 | J128: =Be!I200 -> 0 | L128: =Be!A197 -> 0
A129: 127. | B129: =Be!A201 -> 0 | C129: =Be!B201 -> 0 | D129: =Be!C201 -> 0 | E129: =Be!D201 -> 0 | F129: =Be!E201 -> 0 | G129: =Be!F201 -> 0 | H129: =Be!G201 -> 0 | I129: =Be!H201 -> 0 | J129: =Be!I201 -> 0 | L129: =Be!A197 -> 0
A130: 128. | B130: =Be!A202 -> 0 | C130: =Be!B202 -> 0 | D130: =Be!C202 -> 0 | E130: =Be!D202 -> 0 | F130: =Be!E202 -> 0 | G130: =Be!F202 -> 0 | H130: =Be!G202 -> 0 | I130: =Be!H202 -> 0 | J130: =Be!I202 -> 0 | L130: =Be!A197 -> 0
A131: 129. | B131: =Be!A203 -> 0 | C131: =Be!B203 -> 0 | D131: =Be!C203 -> 0 | E131: =Be!D203 -> 0 | F131: =Be!E203 -> 0 | G131: =Be!F203 -> 0 | H131: =Be!G203 -> 0 | I131: =Be!H203 -> 0 | J131: =Be!I203 -> 0 | L131: =Be!A197 -> 0
A132: 130. | B132: =Be!A204 -> 0 | C132: =Be!B204 -> 0 | D132: =Be!C204 -> 0 | E132: =Be!D204 -> 0 | F132: =Be!E204 -> 0 | G132: =Be!F204 -> 0 | H132: =Be!G204 -> 0 | I132: =Be!H204 -> 0 | J132: =Be!I204 -> 0 | L132: =Be!A197 -> 0
A133: 131. | B133: =Be!A209 -> 0 | C133: =Be!B209 -> 0 | D133: =Be!C209 -> 0 | E133: =Be!D209 -> 0 | F133: =Be!E209 -> 0 | G133: =Be!F209 -> 0 | H133: =Be!G209 -> 0 | I133: =Be!H209 -> 0 | J133: =Be!I209 -> 0 | L133: =Be!A207 -> 0
A134: 132. | B134: =Be!A210 -> 0 | C134: =Be!B210 -> 0 | D134: =Be!C210 -> 0 | E134: =Be!D210 -> 0 | F134: =Be!E210 -> 0 | G134: =Be!F210 -> 0 | H134: =Be!G210 -> 0 | I134: =Be!H210 -> 0 | J134: =Be!I210 -> 0 | L134: =Be!A207 -> 0
A135: 133. | B135: =Be!A211 -> 0 | C135: =Be!B211 -> 0 | D135: =Be!C211 -> 0 | E135: =Be!D211 -> 0 | F135: =Be!E211 -> 0 | G135: =Be!F211 -> 0 | H135: =Be!G211 -> 0 | I135: =Be!H211 -> 0 | J135: =Be!I211 -> 0 | L135: =Be!A207 -> 0
A136: 134. | B136: =Be!A212 -> 0 | C136: =Be!B212 -> 0 | D136: =Be!C212 -> 0 | E136: =Be!D212 -> 0 | F136: =Be!E212 -> 0 | G136: =Be!F212 -> 0 | H136: =Be!G212 -> 0 | I136: =Be!H212 -> 0 | J136: =Be!I212 -> 0 | L136: =Be!A207 -> 0
A137: 135. | B137: =Be!A213 -> 0 | C137: =Be!B213 -> 0 | D137: =Be!C213 -> 0 | E137: =Be!D213 -> 0 | F137: =Be!E213 -> 0 | G137: =Be!F213 -> 0 | H137: =Be!G213 -> 0 | I137: =Be!H213 -> 0 | J137: =Be!I213 -> 0 | L137: =Be!A207 -> 0
A138: 136. | B138: =Be!A214 -> 0 | C138: =Be!B214 -> 0 | D138: =Be!C214 -> 0 | E138: =Be!D214 -> 0 | F138: =Be!E214 -> 0 | G138: =Be!F214 -> 0 | H138: =Be!G214 -> 0 | I138: =Be!H214 -> 0 | J138: =Be!I214 -> 0 | L138: =Be!A207 -> 0
A139: 137. | B139: =Be!A219 -> 0 | C139: =Be!B219 -> 0 | D139: =Be!C219 -> 0 | E139: =Be!D219 -> 0 | F139: =Be!E219 -> 0 | G139: =Be!F219 -> 0 | H139: =Be!G219 -> 0 | I139: =Be!H219 -> 0 | J139: =Be!I219 -> 0 | L139: =Be!A217 -> 0
A140: 138. | B140: =Be!A220 -> 0 | C140: =Be!B220 -> 0 | D140: =Be!C220 -> 0 | E140: =Be!D220 -> 0 | F140: =Be!E220 -> 0 | G140: =Be!F220 -> 0 | H140: =Be!G220 -> 0 | I140: =Be!H220 -> 0 | J140: =Be!I220 -> 0 | L140: =Be!A217 -> 0
A141: 139. | B141: =Be!A221 -> 0 | C141: =Be!B221 -> 0 | D141: =Be!C221 -> 0 | E141: =Be!D221 -> 0 | F141: =Be!E221 -> 0 | G141: =Be!F221 -> 0 | H141: =Be!G221 -> 0 | I141: =Be!H221 -> 0 | J141: =Be!I221 -> 0 | L141: =Be!A217 -> 0
A142: 140. | B142: =Be!A222 -> 0 | C142: =Be!B222 -> 0 | D142: =Be!C222 -> 0 | E142: =Be!D222 -> 0 | F142: =Be!E222 -> 0 | G142: =Be!F222 -> 0 | H142: =Be!G222 -> 0 | I142: =Be!H222 -> 0 | J142: =Be!I222 -> 0 | L142: =Be!A217 -> 0
A143: 141. | B143: =Be!A223 -> 0 | C143: =Be!B223 -> 0 | D143: =Be!C223 -> 0 | E143: =Be!D223 -> 0 | F143: =Be!E223 -> 0 | G143: =Be!F223 -> 0 | H143: =Be!G223 -> 0 | I143: =Be!H223 -> 0 | J143: =Be!I223 -> 0 | L143: =Be!A217 -> 0
A144: 142. | B144: =Be!A224 -> 0 | C144: =Be!B224 -> 0 | D144: =Be!C224 -> 0 | E144: =Be!D224 -> 0 | F144: =Be!E224 -> 0 | G144: =Be!F224 -> 0 | H144: =Be!G224 -> 0 | I144: =Be!H224 -> 0 | J144: =Be!I224 -> 0 | L144: =Be!A217 -> 0
A145: 143. | B145: =Be!A229 -> 0 | C145: =Be!B229 -> 0 | D145: =Be!C229 -> 0 | E145: =Be!D229 -> 0 | F145: =Be!E229 -> 0 | G145: =Be!F229 -> 0 | H145: =Be!G229 -> 0 | I145: =Be!H229 -> 0 | J145: =Be!I229 -> 0 | L145: =Be!A227 -> 0
A146: 144. | B146: =Be!A230 -> 0 | C146: =Be!B230 -> 0 | D146: =Be!C230 -> 0 | E146: =Be!D230 -> 0 | F146: =Be!E230 -> 0 | G146: =Be!F230 -> 0 | H146: =Be!G230 -> 0 | I146: =Be!H230 -> 0 | J146: =Be!I230 -> 0 | L146: =Be!A227 -> 0
A147: 145. | B147: =Be!A231 -> 0 | C147: =Be!B231 -> 0 | D147: =Be!C231 -> 0 | E147: =Be!D231 -> 0 | F147: =Be!E231 -> 0 | G147: =Be!F231 -> 0 | H147: =Be!G231 -> 0 | I147: =Be!H231 -> 0 | J147: =Be!I231 -> 0 | L147: =Be!A227 -> 0
A148: 146. | B148: =Be!A232 -> 0 | C148: =Be!B232 -> 0 | D148: =Be!C232 -> 0 | E148: =Be!D232 -> 0 | F148: =Be!E232 -> 0 | G148: =Be!F232 -> 0 | H148: =Be!G232 -> 0 | I148: =Be!H232 -> 0 | J148: =Be!I232 -> 0 | L148: =Be!A227 -> 0
A149: 147. | B149: =Be!A233 -> 0 | C149: =Be!B233 -> 0 | D149: =Be!C233 -> 0 | E149: =Be!D233 -> 0 | F149: =Be!E233 -> 0 | G149: =Be!F233 -> 0 | H149: =Be!G233 -> 0 | I149: =Be!H233 -> 0 | J149: =Be!I233 -> 0 | L149: =Be!A227 -> 0
A150: 148. | B150: =Be!A234 -> 0 | C150: =Be!B234 -> 0 | D150: =Be!C234 -> 0 | E150: =Be!D234 -> 0 | F150: =Be!E234 -> 0 | G150: =Be!F234 -> 0 | H150: =Be!G234 -> 0 | I150: =Be!H234 -> 0 | J150: =Be!I234 -> 0 | L150: =Be!A227 -> 0
A151: 149. | B151: =Be!A239 -> 0 | C151: =Be!B239 -> 0 | D151: =Be!C239 -> 0 | E151: =Be!D239 -> 0 | F151: =Be!E239 -> 0 | G151: =Be!F239 -> 0 | H151: =Be!G239 -> 0 | I151: =Be!H239 -> 0 | J151: =Be!I239 -> 0 | L151: =Be!A237 -> 0
A152: 150. | B152: =Be!A240 -> 0 | C152: =Be!B240 -> 0 | D152: =Be!C240 -> 0 | E152: =Be!D240 -> 0 | F152: =Be!E240 -> 0 | G152: =Be!F240 -> 0 | H152: =Be!G240 -> 0 | I152: =Be!H240 -> 0 | J152: =Be!I240 -> 0 | L152: =Be!A237 -> 0
A153: 151. | B153: =Be!A241 -> 0 | C153: =Be!B241 -> 0 | D153: =Be!C241 -> 0 | E153: =Be!D241 -> 0 | F153: =Be!E241 -> 0 | G153: =Be!F241 -> 0 | H153: =Be!G241 -> 0 | I153: =Be!H241 -> 0 | J153: =Be!I241 -> 0 | L153: =Be!A237 -> 0
A154: 152. | B154: =Be!A242 -> 0 | C154: =Be!B242 -> 0 | D154: =Be!C242 -> 0 | E154: =Be!D242 -> 0 | F154: =Be!E242 -> 0 | G154: =Be!F242 -> 0 | H154: =Be!G242 -> 0 | I154: =Be!H242 -> 0 | J154: =Be!I242 -> 0 | L154: =Be!A237 -> 0
A155: 153. | B155: =Be!A243 -> 0 | C155: =Be!B243 -> 0 | D155: =Be!C243 -> 0 | E155: =Be!D243 -> 0 | F155: =Be!E243 -> 0 | G155: =Be!F243 -> 0 | H155: =Be!G243 -> 0 | I155: =Be!H243 -> 0 | J155: =Be!I243 -> 0 | L155: =Be!A237 -> 0
A156: 154. | B156: =Be!A244 -> 0 | C156: =Be!B244 -> 0 | D156: =Be!C244 -> 0 | E156: =Be!D244 -> 0 | F156: =Be!E244 -> 0 | G156: =Be!F244 -> 0 | H156: =Be!G244 -> 0 | I156: =Be!H244 -> 0 | J156: =Be!I244 -> 0 | L156: =Be!A237 -> 0

Sheet Csapat
A1: II. korcsoport LEÁNY CSAPAT verseny ( Rendezés Ctrl + f )
B2: Iskola | C2: Pont
A3: 1. | B3: =Be!$A$37&CHAR(10)&Be!$A$39&" "&Be!$I$39&" "&Be!$A$40&" "&Be!$I$40&CHAR(10)&Be!$A$41&" "&Be!$I$41&" "&Be!$A$42&" "&Be!$I$42&CHAR(10)&Be!$A$43&" "&Be!$I$43&" "&Be!$A$44&" "&Be!$I$44&CHAR(10)&" "&Be!$K$43&" "&Be!$K$44 -> Jászai Mari Általános Iskola Monor Félix Viktória 215 Neuwelt Petra 165 Bock Luca 213 Eöllös Emma 199 Magócsi Eszter 178 Rettegi Tímea 230 4×100 80 | C3: =Be!$K$39 -> 1115
A4: 2. | B4: =Be!$A$27&CHAR(10)&Be!$A$29&" "&Be!$I$29&" "&Be!$A$30&" "&Be!$I$30&CHAR(10)&Be!$A$31&" "&Be!$I$31&" "&Be!$A$32&" "&Be!$I$32&CHAR(10)&Be!$A$33&" "&Be!$I$33&" "&Be!$A$34&" "&Be!$I$34&CHAR(10)&" "&Be!$K$33&" "&Be!$K$34 -> Maglódi Vermessy Péter Általános Iskola Forgó Dorottya 166 Sotónyi Lili 169 Vetési Dóra 161 Vince Kamilla 211 Németh Borbála 245 0 4×100 85 | C4: =Be!$K$29 -> 1037
A5: 3. | B5: =Be!$A$47&CHAR(10)&Be!$A$49&" "&Be!$I$49&" "&Be!$A$50&" "&Be!$I$50&CHAR(10)&Be!$A$51&" "&Be!$I$51&" "&Be!$A$52&" "&Be!$I$52&CHAR(10)&Be!$A$53&" "&Be!$I$53&" "&Be!$A$54&" "&Be!$I$54&CHAR(10)&" "&Be!$K$53&" "&Be!$K$54 -> Mende Ádám Anna 163 Kernya Zoé 178 Renecz Ramóna 89 Turczer Jázmin 147 Vidák Klarissza 139 Vrábel Molli 199 4×100 0 | C5: =Be!$K$49 -> 826
A6: 4. | B6: =Be!$A$57&CHAR(10)&Be!$A$59&" "&Be!$I$59&" "&Be!$A$60&" "&Be!$I$60&CHAR(10)&Be!$A$61&" "&Be!$I$61&" "&Be!$A$62&" "&Be!$I$62&CHAR(10)&Be!$A$63&" "&Be!$I$63&" "&Be!$A$64&" "&Be!$I$64&CHAR(10)&" "&Be!$K$63&" "&Be!$K$64 -> 0 0 0 0 0 0 4×100 0 | C6: =Be!$K$59 -> 0
A7: 5. | B7: =Be!$A$67&CHAR(10)&Be!$A$69&" "&Be!$I$69&" "&Be!$A$70&" "&Be!$I$70&CHAR(10)&Be!$A$71&" "&Be!$I$71&" "&Be!$A$72&" "&Be!$I$72&CHAR(10)&Be!$A$73&" "&Be!$I$73&" "&Be!$A$74&" "&Be!$I$74&CHAR(10)&" "&Be!$K$73&" "&Be!$K$74 -> 0 0 0 0 0 0 4×100 0 | C7: =Be!$K$69 -> 0
A8: 6. | B8: =Be!$A$77&CHAR(10)&Be!$A$79&" "&Be!$I$79&" "&Be!$A$80&" "&Be!$I$80&CHAR(10)&Be!$A$81&" "&Be!$I$81&" "&Be!$A$82&" "&Be!$I$82&CHAR(10)&Be!$A$83&" "&Be!$I$83&" "&Be!$A$84&" "&Be!$I$84&CHAR(10)&" "&Be!$K$83&" "&Be!$K$84 -> 0 0 0 0 0 0 4×100 0 | C8: =Be!$K$79 -> 0
A9: 7. | B9: =Be!$A$87&CHAR(10)&Be!$A$89&" "&Be!$I$89&" "&Be!$A$90&" "&Be!$I$90&CHAR(10)&Be!$A$91&" "&Be!$I$91&" "&Be!$A$92&" "&Be!$I$92&CHAR(10)&Be!$A$93&" "&Be!$I$93&" "&Be!$A$94&" "&Be!$I$94&CHAR(10)&" "&Be!$K$93&" "&Be!$K$94 -> 0 0 0 0 0 0 4×100 0 | C9: =Be!$K$89 -> 0
A10: 8. | B10: =Be!$A$97&CHAR(10)&Be!$A$99&" "&Be!$I$99&" "&Be!$A$100&" "&Be!$I$100&CHAR(10)&Be!$A$101&" "&Be!$I$101&" "&Be!$A$102&" "&Be!$I$102&CHAR(10)&Be!$A$103&" "&Be!$I$103&" "&Be!$A$104&" "&Be!$I$104&CHAR(10)&" "&Be!$K$103&" "&Be!$K$104 -> 0 0 0 0 0 0 4×100 0 | C10: =Be!$K$99 -> 0
A11: 9. | B11: =Be!$A$107&CHAR(10)&Be!$A$109&" "&Be!$I$109&" "&Be!$A$110&" "&Be!$I$110&CHAR(10)&Be!$A$111&" "&Be!$I$111&" "&Be!$A$112&" "&Be!$I$112&CHAR(10)&Be!$A$113&" "&Be!$I$113&" "&Be!$A$114&" "&Be!$I$114&CHAR(10)&" "&Be!$K$113&" "&Be!$K$114 -> 0 0 0 0 0 0 4×100 0 | C11: =Be!$K$109 -> 0
A12: 10. | B12: =Be!$A$117&CHAR(10)&Be!$A$119&" "&Be!$I$119&" "&Be!$A$120&" "&Be!$I$120&CHAR(10)&Be!$A$121&" "&Be!$I$121&" "&Be!$A$122&" "&Be!$I$122&CHAR(10)&Be!$A$123&" "&Be!$I$123&" "&Be!$A$124&" "&Be!$I$124&CHAR(10)&" "&Be!$K$123&" "&Be!$K$124 -> 0 0 0 0 0 0 4×100 0 | C12: =Be!$K$119 -> 0
A13: 11. | B13: =Be!$A$127&CHAR(10)&Be!$A$129&" "&Be!$I$129&" "&Be!$A$130&" "&Be!$I$130&CHAR(10)&Be!$A$131&" "&Be!$I$131&" "&Be!$A$132&" "&Be!$I$132&CHAR(10)&Be!$A$133&" "&Be!$I$133&" "&Be!$A$134&" "&Be!$I$134&CHAR(10)&" "&Be!$K$133&" "&Be!$K$134 -> 0 0 0 0 0 0 4×100 0 | C13: =Be!$K$129 -> 0
A14: 12. | B14: =Be!$A$137&CHAR(10)&Be!$A$139&" "&Be!$I$139&" "&Be!$A$140&" "&Be!$I$140&CHAR(10)&Be!$A$141&" "&Be!$I$141&" "&Be!$A$142&" "&Be!$I$142&CHAR(10)&Be!$A$143&" "&Be!$I$143&" "&Be!$A$144&" "&Be!$I$144&CHAR(10)&" "&Be!$K$143&" "&Be!$K$144 -> 0 0 0 0 0 0 4×100 0 | C14: =Be!$K$139 -> 0
A15: 13. | B15: =Be!$A$147&CHAR(10)&Be!$A$149&" "&Be!$I$149&" "&Be!$A$150&" "&Be!$I$150&CHAR(10)&Be!$A$151&" "&Be!$I$151&" "&Be!$A$152&" "&Be!$I$151&CHAR(10)&Be!$A$153&" "&Be!$I$153&" "&Be!$A$154&" "&Be!$I$154&CHAR(10)&" "&Be!$K$153&" "&Be!$K$154 -> 0 0 0 0 0 0 4×100 0 | C15: =Be!$K$149 -> 0
A16: 14. | B16: =Be!$A$157&CHAR(10)&Be!$A$159&" "&Be!$I$159&" "&Be!$A$160&" "&Be!$I$160&CHAR(10)&Be!$A$161&" "&Be!$I$161&" "&Be!$A$162&" "&Be!$I$162&CHAR(10)&Be!$A$163&" "&Be!$I$163&" "&Be!$A$164&" "&Be!$I$164&CHAR(10)&" "&Be!$K$163&" "&Be!$K$164 -> 0 0 0 0 0 0 4×100 0 | C16: =Be!$K$159 -> 0
A17: 15. | B17: =Be!$A$167&CHAR(10)&Be!$A$169&" "&Be!$I$169&" "&Be!$A$170&" "&Be!$I$170&CHAR(10)&Be!$A$171&" "&Be!$I$171&" "&Be!$A$172&" "&Be!$I$172&CHAR(10)&Be!$A$173&" "&Be!$I$173&" "&Be!$A$174&" "&Be!$I$174&CHAR(10)&" "&Be!$K$173&" "&Be!$K$174 -> 0 0 0 0 0 0 4×100 0 | C17: =Be!$K$169 -> 0
A18: 16. | B18: =Be!$A$177&CHAR(10)&Be!$A$179&" "&Be!$I$179&" "&Be!$A$180&" "&Be!$I$180&CHAR(10)&Be!$A$181&" "&Be!$I$181&" "&Be!$A$182&" "&Be!$I$182&CHAR(10)&Be!$A$183&" "&Be!$I$183&" "&Be!$A$184&" "&Be!$I$184&CHAR(10)&" "&Be!$K$183&" "&Be!$K$184 -> 0 0 0 0 0 0 4×100 0 | C18: =Be!$K$179 -> 0
A19: 17. | B19: =Be!$A$187&CHAR(10)&Be!$A$189&" "&Be!$I$189&" "&Be!$A$190&" "&Be!$I$190&CHAR(10)&Be!$A$191&" "&Be!$I$191&" "&Be!$A$192&" "&Be!$I$192&CHAR(10)&Be!$A$193&" "&Be!$I$193&" "&Be!$A$194&" "&Be!$I$194&CHAR(10)&" "&Be!$K$193&" "&Be!$K$194 -> 0 0 0 0 0 0 4×100 0 | C19: =Be!$K$189 -> 0
A20: 18. | B20: =Be!$A$197&CHAR(10)&Be!$A$199&" "&Be!$I$199&" "&Be!$A$200&" "&Be!$I$200&CHAR(10)&Be!$A$201&" "&Be!$I$201&" "&Be!$A$202&" "&Be!$I$202&CHAR(10)&Be!$A$203&" "&Be!$I$203&" "&Be!$A$204&" "&Be!$I$204&CHAR(10)&" "&Be!$K$203&" "&Be!$K$204 -> 0 0 0 0 0 0 4×100 0 | C20: =Be!$K$199 -> 0
A21: 19. | B21: =Be!$A$207&CHAR(10)&Be!$A$209&" "&Be!$I$209&" "&Be!$A$210&" "&Be!$I$210&CHAR(10)&Be!$A$211&" "&Be!$I$211&" "&Be!$A$212&" "&Be!$I$212&CHAR(10)&Be!$A$213&" "&Be!$I$213&" "&Be!$A$214&" "&Be!$I$214&CHAR(10)&" "&Be!$K$213&" "&Be!$K$214 -> 0 0 0 0 0 0 4×100 0 | C21: =Be!$K$209 -> 0
A22: 20. | B22: =Be!$A$217&CHAR(10)&Be!$A$219&" "&Be!$I$219&" "&Be!$A$220&" "&Be!$I$220&CHAR(10)&Be!$A$221&" "&Be!$I$221&" "&Be!$A$222&" "&Be!$I$222&CHAR(10)&Be!$A$223&" "&Be!$I$223&" "&Be!$A$224&" "&Be!$I$224&CHAR(10)&" "&Be!$K$223&" "&Be!$K$224 -> 0 0 0 0 0 0 4×100 0 | C22: =Be!$K$219 -> 0
A23: 21. | B23: =Be!$A$227&CHAR(10)&Be!$A$229&" "&Be!$I$229&" "&Be!$A$230&" "&Be!$I$230&CHAR(10)&Be!$A$231&" "&Be!$I$231&" "&Be!$A$232&" "&Be!$I$232&CHAR(10)&Be!$A$233&" "&Be!$I$233&" "&Be!$A$234&" "&Be!$I$234&CHAR(10)&" "&Be!$K$233&" "&Be!$K$234 -> 0 0 0 0 0 0 4×100 0 | C23: =Be!$K$229 -> 0
A24: 22. | B24: =Be!$A$237&CHAR(10)&Be!$A$239&" "&Be!$I$239&" "&Be!$A$240&" "&Be!$I$240&CHAR(10)&Be!$A$241&" "&Be!$I$241&" "&Be!$A$242&" "&Be!$I$242&CHAR(10)&Be!$A$243&" "&Be!$I$243&" "&Be!$A$244&" "&Be!$I$244&CHAR(10)&" "&Be!$K$243&" "&Be!$K$244 -> 0 0 0 0 0 0 4×100 0 | C24: =Be!$K$239 -> 0
